{"text_format":"1","workbook":"xlsx","n_sheets":4,"sheets":["入力シート","申請書","リスト","取込シート"],"not_rendered":{"charts":0,"images":0,"macros":1,"external_links":0,"defined_names":3,"comments":0,"pivot_tables":0},"unopened":[],"bounds":{"document_bytes":16777216,"sheet_cells":100000,"rows_first":2000,"rows_last":500,"rows_between":2000,"halvings":0,"cell_chars":16384,"cell_head_chars":4096},"cells_cut":0,"cells_raw":0,"read":"whole","date_system":"1900"}

{"sheet":"入力シート","index":0,"n_rows":61,"n_cols":14,"rows_kept":61,"cut":false,"hidden":false,"merged":[[50,0,54,0],[35,0,45,0],[26,0,34,0],[46,0,49,0],[1,0,5,0],[6,0,10,0],[11,0,15,0],[16,0,20,0],[21,0,25,0]]}
[null,"No.","0（例）",1,2,3,4,5,6,7,8,9,10,"集計"]
["申請者情報","申請者氏名又は名称","国土交通株式会社"]
[null,"申請者住所","東京都港区○○○○丁目○○番○○号"]
[null,"（法人のみ）代表者の氏名","代表取締役社長　○○　○○"]
[null,"申請者郵便番号","1○○-○○○○"]
[null,"申請者電話番号","03-○○○○-○○○○"]
["代理人情報","代理人氏名又は名称","日本船主責任相互保険組合"]
[null,"代理人住所","東京都港区赤坂2丁目23番1号アークヒルズフロントタワー15階"]
[null,"（法人のみ）代表者の氏名","理事長　○○　○○"]
[null,"代理人郵便番号","103-0013"]
[null,"代理人電話番号","03-6687-0505"]
["船舶所有者情報","船舶所有者氏名又は名称","国土交通株式会社"]
[null,"船舶所有者住所","東京都港区○○○○丁目○○番○○号"]
[null,"（法人のみ）代表者の氏名","代表取締役社長　○○　○○"]
[null,"船舶所有者氏名又は名称（英文）","KOKUDOKOTU K. K."]
[null,"船舶所有者住所（英文）","1-3, Kasumgaseki 2-chome, Chiyoda-ku, Tokyo, Japan"]
["船舶所有者情報（２）","船舶所有者氏名又は名称（２）","独立行政法人鉄道建設・運輸施設整備支援機構"]
[null,"船舶所有者住所","神奈川県横浜市中区本町六丁目50番地1"]
[null,"（法人のみ）代表者の氏名","理事長　 ○○　○○"]
[null,"船舶所有者氏名又は名称（英文）","JAPAN RAILWAY CONSTRUCTION, TRANSPORT AND TECHNOLOGY AGENCY"]
[null,"船舶所有者住所（英文）","50-1, Hon-cho 6-Chome, Naka-ku, Yokohama-shi, Kanagawa, Japan"]
["船舶所有者情報（３）","船舶所有者氏名又は名称（３）"]
[null,"船舶所有者住所"]
[null,"（法人のみ）代表者の氏名"]
[null,"船舶所有者氏名又は名称（英文）"]
[null,"船舶所有者住所（英文）"]
["船舶情報","船名","国土交通丸"]
[null,"船名（英文）","KOKUDOKOTU MARU"]
[null,"船種","貨物船"]
[null,"船舶番号又は信号符字",111111]
[null,"国際海事機関船舶識別番号","9999999"]
[null,"船籍港","東京都"]
[null,"船籍港（英文）","Tokyo"]
[null,"国際総トン数 (GT)",1200]
[null,"（国内）総トン数 ＜参考値＞"]
["保険情報","保障契約の種類","船主責任"]
[null,"保障契約の種類（英文）","P&I Insurance"]
[null,"保障契約の始期","2020-02-20"]
[null,"保障契約の終期","2021-02-20"]
[null,"保障契約によりてん補される額",1000000000]
[null,"同単位（円=\\、米ドル=$、ユーロ=€）","\\"]
[null,"保険者氏名又は名称","日本船主責任相互保険組合","東京海上日動火災保険株式会社"]
[null,"保険者住所",{"$f":"VLOOKUP(C42,リスト!$D$2:$G$15,2,FALSE)","v":"東京都港区赤坂2丁目23番1号アークヒルズフロントタワー15階"},{"$f":"IFERROR(VLOOKUP(D42,リスト!$D$2:$G$15,2,FALSE),\"\")","v":"東京都千代田区大手町2丁目6番4号"},{"$f":"IFERROR(VLOOKUP(E42,リスト!$D$2:$G$15,2,FALSE),\"\")","v":""},{"$f":"IFERROR(VLOOKUP(F42,リスト!$D$2:$G$15,2,FALSE),\"\")","v":""},{"$f":"IFERROR(VLOOKUP(G42,リスト!$D$2:$G$15,2,FALSE),\"\")","v":""},{"$f":"IFERROR(VLOOKUP(H42,リスト!$D$2:$G$15,2,FALSE),\"\")","v":""},{"$f":"IFERROR(VLOOKUP(I42,リスト!$D$2:$G$15,2,FALSE),\"\")","v":""},{"$f":"IFERROR(VLOOKUP(J42,リスト!$D$2:$G$15,2,FALSE),\"\")","v":""},{"$f":"IFERROR(VLOOKUP(K42,リスト!$D$2:$G$15,2,FALSE),\"\")","v":""},{"$f":"IFERROR(VLOOKUP(L42,リスト!$D$2:$G$15,2,FALSE),\"\")","v":""},{"$f":"IFERROR(VLOOKUP(M42,リスト!$D$2:$G$15,2,FALSE),\"\")","v":""}]
[null,"（法人のみ）代表者の氏名","理事長　○○　○○"]
[null,"保険者氏名又は名称（英文）",{"$f":"VLOOKUP(C42,リスト!$D$2:$G$15,3,FALSE)","v":"The Japan Ship Owners' Mutual Protection & Indemnity Association"},{"$f":"IFERROR(VLOOKUP(D42,リスト!$D$2:$G$15,3,FALSE),\"\")","v":"Tokio Marine & Nichido Fire Insurance Co.,Ltd."},{"$f":"IFERROR(VLOOKUP(E42,リスト!$D$2:$G$15,3,FALSE),\"\")","v":""},{"$f":"IFERROR(VLOOKUP(F42,リスト!$D$2:$G$15,3,FALSE),\"\")","v":""},{"$f":"IFERROR(VLOOKUP(G42,リスト!$D$2:$G$15,3,FALSE),\"\")","v":""},{"$f":"IFERROR(VLOOKUP(H42,リスト!$D$2:$G$15,3,FALSE),\"\")","v":""},{"$f":"IFERROR(VLOOKUP(I42,リスト!$D$2:$G$15,3,FALSE),\"\")","v":""},{"$f":"IFERROR(VLOOKUP(J42,リスト!$D$2:$G$15,3,FALSE),\"\")","v":""},{"$f":"IFERROR(VLOOKUP(K42,リスト!$D$2:$G$15,3,FALSE),\"\")","v":""},{"$f":"IFERROR(VLOOKUP(L42,リスト!$D$2:$G$15,3,FALSE),\"\")","v":""},{"$f":"IFERROR(VLOOKUP(M42,リスト!$D$2:$G$15,3,FALSE),\"\")","v":""}]
[null,"保険者住所（英文）",{"$f":"VLOOKUP(C42,リスト!$D$2:$G$15,4,FALSE)","v":"15th Floor, ARK Hills Front Tower, 2-23-1, Akasaka, Minato-ku, Tokyo, Japan"},{"$f":"IFERROR(VLOOKUP(D42,リスト!$D$2:$G$15,4,FALSE),\"\")","v":"2-6-4 Otemachi, Chiyoda-ku, Tokyo, Japan"},{"$f":"IFERROR(VLOOKUP(E42,リスト!$D$2:$G$15,4,FALSE),\"\")","v":""},{"$f":"IFERROR(VLOOKUP(F42,リスト!$D$2:$G$15,4,FALSE),\"\")","v":""},{"$f":"IFERROR(VLOOKUP(G42,リスト!$D$2:$G$15,4,FALSE),\"\")","v":""},{"$f":"IFERROR(VLOOKUP(H42,リスト!$D$2:$G$15,4,FALSE),\"\")","v":""},{"$f":"IFERROR(VLOOKUP(I42,リスト!$D$2:$G$15,4,FALSE),\"\")","v":""},{"$f":"IFERROR(VLOOKUP(J42,リスト!$D$2:$G$15,4,FALSE),\"\")","v":""},{"$f":"IFERROR(VLOOKUP(K42,リスト!$D$2:$G$15,4,FALSE),\"\")","v":""},{"$f":"IFERROR(VLOOKUP(L42,リスト!$D$2:$G$15,4,FALSE),\"\")","v":""},{"$f":"IFERROR(VLOOKUP(M42,リスト!$D$2:$G$15,4,FALSE),\"\")","v":""}]
["質問","2000トン超の黒油を運搬しますか？","NO"]
[null,"国際航海しますか？","NO"]
[null,"自航ですか？","YES"]
[null,"前回申請から変更あり？","NO"]
["申請書類","CLC証書(2000t超黒油運搬)",{"$f":"IF(C47=\"YES\", \"○\", \"-\")","v":"-"},"-","-","-","-","-","-",{"$f":"IF(J47=\"YES\", \"○\", \"-\")","v":"-"},"-","-","-",{"$f":"COUNTIF(D51:M51,\"○\")","v":0}]
[null,"ナイロビ証書(300GT以上)",{"$f":"IF(C34>=300,\"○\",\"-\")","v":"○"},"-","-","-","-","-","-",{"$f":"IF(J34>=300,\"○\",\"-\")","v":"-"},"-","-","-",{"$f":"COUNTIF(D52:M52,\"○\")","v":0}]
[null,"バンカー証書(1000GT超)",{"$f":"IF(AND(C49=\"YES\",C34>1000), \"○\", \"-\")","v":"○"},"-","-","-","-","-","-",{"$f":"IF(AND(J49=\"YES\",J34>1000), \"○\", \"-\")","v":"-"},"-","-","-",{"$f":"COUNTIF(D53:M53,\"○\")","v":0}]
[null,"国内ナイロビ証明書\n(外航100GT以上300GT未満)",{"$f":"IF(AND(C48=\"YES\",AND(100<=C34,C34<300)),\"○\",\"-\")","v":"-"},"-","-","-","-","-","-",{"$f":"IF(AND(J48=\"YES\",AND(100<=J34,J34<300)),\"○\",\"-\")","v":"-"},"-","-","-",{"$f":"COUNTIF(D54:M54,\"○\")","v":0}]
[null,"国内バンカー証明書\n(外航100GT以上1000GT以下)",{"$f":"IF(AND(AND(C48=\"YES\",C49=\"YES\"),AND(100<=C34,C34<=1000)), \"○\", \"-\")","v":"-"},{"$f":"IF(AND(AND(D48=\"YES\",D49=\"YES\"),AND(100<=D34,D34<=1000)), \"○\", \"-\")","v":"-"},{"$f":"IF(AND(AND(E48=\"YES\",E49=\"YES\"),AND(100<=E34,E34<=1000)), \"○\", \"-\")","v":"-"},"-","-","-","-","-","-","-","-",{"$f":"COUNTIF(D55:M55,\"○\")","v":0}]
["他","申請日","2020-03-01",null,null,null,null,null,null,null,null,null,null,{"$f":"SUM(N51:N55)","v":0}]
[]
[null,"赤字：","必須入力項目"]
[null,null,"入力項目"]
[null,null,"リストから選択項目"]
[null,null,"自動入力項目"]

{"sheet":"申請書","index":1,"n_rows":77,"n_cols":163,"rows_kept":77,"cut":false,"hidden":false,"merged":[[18,123,20,149],[2,153,2,161],[2,10,3,10],[63,111,63,115],[63,123,63,149],[62,1,62,8],[61,15,65,20],[61,9,65,14],[61,1,61,8],[65,21,65,26],[65,1,65,8],[64,33,64,56],[64,57,64,80],[64,81,64,103],[31,104,35,110],[36,104,40,110],[41,104,45,110],[46,104,50,110],[51,104,55,110],[56,104,60,110],[61,104,65,110],[59,57,59,80],[59,81,59,103],[63,1,63,8],[56,162,60,165],[69,81,69,103],[70,123,70,149],[70,33,70,56],[70,57,70,80],[70,81,70,103],[66,33,66,56],[66,57,66,80],[66,123,66,149],[66,150,70,153],[66,154,70,157],[61,162,65,165],[66,162,70,165],[66,158,70,161],[58,123,58,149],[58,33,58,56],[58,57,58,80],[58,81,58,103],[59,123,59,149],[59,33,59,56],[65,123,65,149],[68,123,68,149],[61,33,61,56],[61,57,61,80],[61,81,61,103],[61,27,65,32],[61,21,62,26],[65,33,65,56],[65,57,65,80],[65,81,65,103],[21,162,25,165],[26,162,30,165],[21,154,25,157],[31,162,35,165],[36,162,40,165],[41,162,45,165],[21,158,25,161],[26,150,30,153],[26,154,30,157],[26,158,30,161],[31,150,35,153],[31,154,35,157],[31,158,35,161],[21,150,25,153],[46,162,50,165],[51,162,55,165],[55,123,55,149],[55,33,55,56],[70,21,70,26],[70,1,70,8],[67,1,67,8],[67,111,67,115],[67,33,67,56],[63,21,64,26],[63,33,63,56],[63,57,63,80],[63,81,63,103],[64,1,64,8],[51,15,55,20],[51,21,52,26],[51,27,55,32],[51,116,55,116],[52,123,52,149],[51,117,55,122],[66,1,66,8],[66,9,70,14],[66,15,70,20],[66,81,66,103],[66,21,67,26],[66,111,66,115],[65,111,65,115],[68,1,68,8],[68,21,69,26],[68,111,68,115],[68,33,68,56],[68,57,68,80],[68,81,68,103],[69,1,69,8],[69,111,69,115],[69,33,69,56],[69,57,69,80],[66,27,70,32],[56,123,56,149],[56,33,56,56],[56,57,56,80],[56,81,56,103],[54,123,54,149],[54,33,54,56],[54,57,54,80],[54,81,54,103],[54,111,54,115],[71,154,71,157],[71,158,71,161],[72,150,72,161],[36,150,40,153],[36,154,40,157],[36,158,40,161],[41,150,45,153],[41,154,45,157],[41,158,45,161],[46,150,50,153],[46,154,50,157],[46,158,50,161],[51,158,55,161],[56,154,60,157],[56,158,60,161],[61,150,65,153],[61,154,65,157],[61,158,65,161],[56,150,60,153],[51,150,55,153],[51,154,55,157],[71,150,71,153],[69,123,69,149],[66,117,70,122],[62,111,62,115],[62,123,62,149],[62,33,62,56],[62,57,62,80],[62,81,62,103],[66,116,70,116],[67,123,67,149],[67,57,67,80],[67,81,67,103],[64,111,64,115],[64,123,64,149],[66,104,70,110],[70,111,70,115],[38,123,38,149],[52,57,52,80],[52,81,52,103],[53,123,53,149],[53,33,53,56],[53,57,53,80],[53,81,53,103],[27,57,27,80],[40,81,40,103],[41,57,41,80],[41,81,41,103],[43,57,43,80],[43,81,43,103],[39,123,39,149],[36,33,36,56],[36,57,36,80],[36,81,36,103],[37,123,37,149],[37,33,37,56],[37,57,37,80],[37,81,37,103],[39,33,39,56],[39,57,39,80],[51,111,51,115],[32,123,32,149],[32,33,32,56],[32,57,32,80],[32,81,32,103],[31,116,35,116],[29,81,29,103],[35,33,35,56],[29,57,29,80],[30,33,30,56],[34,81,34,103],[31,33,31,56],[31,57,31,80],[31,123,31,149],[33,123,33,149],[33,33,33,56],[33,57,33,80],[35,123,35,149],[30,123,30,149],[18,9,20,14],[18,15,20,20],[18,21,20,26],[26,111,26,115],[26,57,26,80],[26,81,26,103],[18,27,20,32],[18,81,20,103],[18,57,20,80],[21,33,21,56],[21,57,21,80],[21,81,21,103],[22,57,22,80],[22,81,22,103],[23,33,23,56],[18,104,20,110],[21,104,25,110],[26,104,30,110],[18,111,20,115],[24,57,24,80],[22,33,22,56],[28,33,28,56],[23,57,23,80],[23,81,23,103],[22,123,22,149],[28,57,28,80],[28,81,28,103],[28,1,28,8],[29,123,29,149],[29,111,29,115],[28,21,29,26],[26,116,30,116],[29,1,29,8],[28,111,28,115],[26,21,27,26],[25,1,25,8],[25,111,25,115],[25,123,25,149],[29,33,29,56],[24,111,24,115],[21,21,22,26],[21,111,21,115],[21,123,21,149],[28,123,28,149],[27,1,27,8],[27,123,27,149],[30,111,30,115],[27,111,27,115],[40,123,40,149],[40,33,40,56],[40,57,40,80],[18,1,20,8],[18,33,20,56],[26,117,30,122],[18,116,20,122],[23,123,23,149],[24,123,24,149],[26,123,26,149],[37,1,37,8],[39,111,39,115],[39,1,39,8],[33,81,33,103],[34,123,34,149],[34,33,34,56],[34,57,34,80],[25,33,25,56],[25,57,25,80],[25,81,25,103],[30,57,30,80],[30,81,30,103],[27,81,27,103],[36,117,40,122],[36,111,36,115],[38,1,38,8],[38,21,39,26],[38,111,38,115],[38,81,38,103],[39,81,39,103],[37,111,37,115],[40,1,40,8],[40,21,40,26],[40,111,40,115],[38,33,38,56],[36,1,36,8],[36,9,40,14],[36,15,40,20],[36,21,37,26],[36,27,40,32],[41,9,45,14],[41,15,45,20],[41,21,42,26],[41,27,45,32],[41,117,45,122],[41,111,41,115],[41,123,41,149],[41,33,41,56],[42,1,42,8],[42,111,42,115],[42,123,42,149],[42,33,42,56],[44,1,44,8],[44,111,44,115],[44,123,44,149],[45,123,45,149],[45,21,45,26],[45,1,45,8],[43,123,43,149],[43,33,43,56],[45,57,45,80],[45,81,45,103],[42,57,42,80],[43,21,44,26],[43,1,43,8],[44,81,44,103],[41,116,45,116],[52,33,52,56],[56,111,56,115],[56,117,60,122],[43,111,43,115],[46,57,46,80],[44,33,44,56],[45,111,45,115],[45,33,45,56],[56,27,60,32],[60,21,60,26],[60,1,60,8],[59,1,59,8],[58,21,59,26],[58,1,58,8],[57,1,57,8],[56,9,60,14],[56,1,56,8],[56,21,57,26],[56,15,60,20],[41,1,41,8],[60,33,60,56],[60,123,60,149],[57,123,57,149],[50,123,50,149],[50,33,50,56],[47,33,47,56],[47,57,47,80],[47,81,47,103],[48,123,48,149],[48,33,48,56],[48,57,48,80],[48,81,48,103],[49,123,49,149],[49,33,49,56],[49,57,49,80],[49,81,49,103],[47,123,47,149],[46,116,50,116],[46,81,46,103],[56,116,60,116],[59,111,59,115],[58,111,58,115],[57,111,57,115],[60,111,60,115],[60,81,60,103],[60,57,60,80],[57,33,57,56],[57,57,57,80],[57,81,57,103],[21,1,21,8],[21,15,25,20],[30,21,30,26],[30,1,30,8],[25,21,25,26],[26,27,30,32],[21,27,25,32],[26,15,30,20],[26,9,30,14],[21,9,25,14],[26,1,26,8],[24,33,24,56],[26,33,26,56],[27,33,27,56],[24,81,24,103],[23,1,23,8],[23,21,24,26],[38,57,38,80],[42,81,42,103],[54,1,54,8],[23,111,23,115],[24,1,24,8],[22,1,22,8],[22,111,22,115],[35,21,35,26],[35,1,35,8],[34,111,34,115],[34,1,34,8],[33,111,33,115],[31,81,31,103],[53,1,53,8],[46,27,50,32],[46,21,47,26],[46,15,50,20],[46,9,50,14],[46,1,46,8],[47,111,47,115],[47,1,47,8],[49,111,49,115],[49,1,49,8],[48,111,48,115],[48,21,49,26],[48,1,48,8],[46,33,46,56],[52,1,52,8],[51,33,51,56],[51,57,51,80],[51,81,51,103],[51,1,51,8],[51,9,55,14],[55,111,55,115],[55,21,55,26],[55,57,55,80],[55,81,55,103],[55,1,55,8],[33,21,34,26],[33,1,33,8],[31,111,31,115],[31,117,35,122],[31,27,35,32],[35,111,35,115],[35,57,35,80],[35,81,35,103],[31,21,32,26],[31,15,35,20],[31,9,35,14],[31,1,31,8],[32,1,32,8],[52,111,52,115],[50,57,50,80],[50,81,50,103],[44,57,44,80],[50,21,50,26],[50,1,50,8],[46,111,46,115],[46,117,50,122],[53,111,53,115],[53,21,54,26],[15,1,17,39],[76,1,77,161],[74,1,74,161],[1,1,1,161],[20,150,20,153],[20,154,20,157],[20,158,20,161],[19,150,19,161],[19,162,20,165],[18,150,18,165],[71,138,71,149],[72,138,72,149],[50,111,50,115],[61,111,61,115],[61,117,65,122],[61,116,65,116],[51,123,51,149],[61,123,61,149],[36,116,40,116],[36,123,36,149],[46,123,46,149],[21,116,25,116],[32,111,32,115],[21,117,25,122]]}
[]
[null,{"$f":"IF(OR(入力シート!D56>44104,入力シート!D56=\"\"),\"保障契約証明書交付申請書\",IF(AND(EU72>0,SUM(EY72:FF72)>0),\"保障契約証明書・相当証書交付申請書\",IF(EU72>0,\"保障契約証明書交付申請書\",\"相当証書交付申請書\")))","v":"保障契約証明書交付申請書"}]
[null,"地方運輸局長",null,null,null,null,null,null,null,null,"殿",null,null,null,null,null,null,null,null,null,null,null,null,null,null,null,null,null,null,null,null,null,null,null,null,null,null,null,null,null,null,null,null,null,null,null,null,null,null,null,null,null,null,null,null,null,null,null,null,null,null,null,null,null,null,null,null,null,null,null,null,null,null,null,null,null,null,null,null,null,null,null,null,null,null,null,null,null,null,null,null,null,null,null,null,null,null,null,null,null,null,null,null,null,null,null,null,null,null,null,null,null,null,null,null,null,null,null,null,null,null,null,null,null,null,null,null,null,null,null,null,null,null,null,null,null,null,null,null,null,null,null,null,null,null,null,null,null,null,null,null,null,null,{"$f":"入力シート!D56","v":"00:00:00"}]
[null,"運輸監理部長"]
[]
[null,"       申請者の氏名又は名称及び住所並び",null,null,null,null,null,null,null,null,null,null,null,null,null,null,null,null,null,null,null,{"$f":"入力シート!D2&\"　　　　印\"","v":"　　　　印"}]
[null,"       に法人にあってはその代表者の氏名",null,null,null,null,null,null,null,null,null,null,null,null,null,null,null,null,null,null,null,{"$f":"入力シート!D3","v":0}]
[null,"       郵便番号",null,null,null,null,null,null,null,{"$f":"入力シート!D5","v":0},null,null,null,null,null,null,null,null,null,null,null,{"$f":"入力シート!D4","v":0}]
[null,"       電話番号",null,null,null,null,null,null,null,{"$f":"入力シート!D6","v":0}]
[]
[null,"       代理人の氏名又は名称及び住所並び",null,null,null,null,null,null,null,null,null,null,null,null,null,null,null,null,null,null,null,{"$f":"IF(入力シート!D7=\"\",\"\",入力シート!D7&\"　　　　印\")","v":""}]
[null,"       に法人にあってはその代表者の氏名",null,null,null,null,null,null,null,null,null,null,null,null,null,null,null,null,null,null,null,{"$f":"IF(入力シート!D8=\"\",\"\",入力シート!D8)","v":""}]
[null,"       郵便番号",null,null,null,null,null,null,null,{"$f":"IF(入力シート!D10=\"\",\"\",入力シート!D10)","v":""},null,null,null,null,null,null,null,null,null,null,null,{"$f":"IF(入力シート!D9=\"\",\"\",入力シート!D9)","v":""}]
[null,"       電話番号",null,null,null,null,null,null,null,{"$f":"IF(入力シート!D11=\"\",\"\",入力シート!D11)","v":""}]
[null,null,null,null,null,null,null,null,null,null,null,null,null,null,null,null,null,null,null,null,null,null,null,null,null,null,null,null,null,null,null,null,null,null,null,null,null,null,null,null,{"$f":"IF(OR(入力シート!D56>44104,入力シート!D56=\"\"),\"第17条第2項\",\"\")","v":"第17条第2項"}]
[null,{"$f":"IF(OR(入力シート!D56>44104,入力シート!D56=\"\"),\"下記の船舶について、保障契約証明書の交付を受けたいので、船舶油濁等損害賠償保障法\",IF(AND(EU72>0,SUM(EY72:FF72)>0),\"下記の船舶について、保障契約証明書及び相当証書の交付を受けたいので、船舶油濁損害賠償保障法第17条第2項及び船舶油濁損害賠償保障法の一部を改正する法律（令和元年法律第18号）附則第2条第1項の規定により申請します。\",IF(EU72>0,\"下記の船舶について、保障契約証明書の交付を受けたいので、船舶油濁損害賠償保障法第17条第2項の規定により申請します。\",\"下記の船舶について、相当証書の交付を受けたいので、船舶油濁損害賠償保障法の一部を改正する法律（令和元年法律第18号）附則第2条第1項の規定により申請します。\")))","v":"下記の船舶について、保障契約証明書の交付を受けたいので、船舶油濁等損害賠償保障法"},null,null,null,null,null,null,null,null,null,null,null,null,null,null,null,null,null,null,null,null,null,null,null,null,null,null,null,null,null,null,null,null,null,null,null,null,null,null,{"$f":"IF(OR(入力シート!D56>44104,入力シート!D56=\"\"),\"第44条において準用する同法第17条第2項\",\"\")","v":"第44条において準用する同法第17条第2項"},null,null,null,null,null,null,null,null,null,null,null,null,null,null,null,null,null,{"$f":"IF(OR(入力シート!D56>44104,入力シート!D56=\"\"),\"の規定により申請します。\",\"\")","v":"の規定により申請します。"}]
[null,null,null,null,null,null,null,null,null,null,null,null,null,null,null,null,null,null,null,null,null,null,null,null,null,null,null,null,null,null,null,null,null,null,null,null,null,null,null,null,{"$f":"IF(OR(入力シート!D56>44104,入力シート!D56=\"\"),\"第52条において準用する同法第17条第2項\",\"\")","v":"第52条において準用する同法第17条第2項"}]
[]
["Ｎｏ.","①船名及び船種",null,null,null,null,null,null,null,"②船舶番号\n又は信号符字",null,null,null,null,null,"③国際海事機関船舶識別番号",null,null,null,null,null,"④船籍港",null,null,null,null,null,"⑤総トン数",null,null,null,null,null,"⑥船舶所有者の氏名又は名称及び住所並びに法人にあってはその代表者の氏名",null,null,null,null,null,null,null,null,null,null,null,null,null,null,null,null,null,null,null,null,null,null,null,"⑥船舶所有者の氏名又は名称及び住所並びに法人にあってはその代表者の氏名（２）",null,null,null,null,null,null,null,null,null,null,null,null,null,null,null,null,null,null,null,null,null,null,null,"⑥船舶所有者の氏名又は名称及び住所並びに法人にあってはその代表者の氏名（３）",null,null,null,null,null,null,null,null,null,null,null,null,null,null,null,null,null,null,null,null,null,null,"⑦保障契約の種類",null,null,null,null,null,null,"⑧保障契約の期間",null,null,null,null,"⑨保障契約により塡補・担保される額",null,null,null,null,null,null,"⑩保険者等の氏名又は名称及び住所並びに法人にあってはその代表者の氏名",null,null,null,null,null,null,null,null,null,null,null,null,null,null,null,null,null,null,null,null,null,null,null,null,null,null,"⑪備考"]
[null,null,null,null,null,null,null,null,null,null,null,null,null,null,null,null,null,null,null,null,null,null,null,null,null,null,null,null,null,null,null,null,null,null,null,null,null,null,null,null,null,null,null,null,null,null,null,null,null,null,null,null,null,null,null,null,null,null,null,null,null,null,null,null,null,null,null,null,null,null,null,null,null,null,null,null,null,null,null,null,null,null,null,null,null,null,null,null,null,null,null,null,null,null,null,null,null,null,null,null,null,null,null,null,null,null,null,null,null,null,null,null,null,null,null,null,null,null,null,null,null,null,null,null,null,null,null,null,null,null,null,null,null,null,null,null,null,null,null,null,null,null,null,null,null,null,null,null,null,null,"申請する証書",null,null,null,null,null,null,null,null,null,null,null,"更新"]
[null,null,null,null,null,null,null,null,null,null,null,null,null,null,null,null,null,null,null,null,null,null,null,null,null,null,null,null,null,null,null,null,null,null,null,null,null,null,null,null,null,null,null,null,null,null,null,null,null,null,null,null,null,null,null,null,null,null,null,null,null,null,null,null,null,null,null,null,null,null,null,null,null,null,null,null,null,null,null,null,null,null,null,null,null,null,null,null,null,null,null,null,null,null,null,null,null,null,null,null,null,null,null,null,null,null,null,null,null,null,null,null,null,null,null,null,null,null,null,null,null,null,null,null,null,null,null,null,null,null,null,null,null,null,null,null,null,null,null,null,null,null,null,null,null,null,null,null,null,null,"CLC",null,null,null,"燃料油",null,null,null,"難破物"]
[1,{"$f":"入力シート!D$27","v":0},null,null,null,null,null,null,null,{"$f":"入力シート!D$30","v":0},null,null,null,null,null,{"$f":"入力シート!D$31","v":0},null,null,null,null,null,{"$f":"入力シート!D$32","v":0},null,null,null,null,null,{"$f":"入力シート!D$34","v":0},null,null,null,null,null,{"$f":"入力シート!D$12","v":0},null,null,null,null,null,null,null,null,null,null,null,null,null,null,null,null,null,null,null,null,null,null,null,{"$f":"入力シート!D$17","v":0},null,null,null,null,null,null,null,null,null,null,null,null,null,null,null,null,null,null,null,null,null,null,null,{"$f":"入力シート!D$22","v":0},null,null,null,null,null,null,null,null,null,null,null,null,null,null,null,null,null,null,null,null,null,null,{"$f":"入力シート!D$36","v":0},null,null,null,null,null,null,null,null,null,null,null,{"$f":"入力シート!D$41","v":0},{"$f":"入力シート!D$40","v":0},null,null,null,null,null,{"$f":"入力シート!D$42","v":"東京海上日動火災保険株式会社"},null,null,null,null,null,null,null,null,null,null,null,null,null,null,null,null,null,null,null,null,null,null,null,null,null,null,{"$f":"入力シート!D$51","v":"-"},null,null,null,{"$f":"IF(OR(入力シート!D$53=\"○\",入力シート!D$55=\"○\"),\"○\",\"-\")","v":"-"},null,null,null,{"$f":"IF(OR(入力シート!D$52=\"○\",入力シート!D$54=\"○\"),\"○\",\"-\")","v":"-"},null,null,null,{"$f":"IF(入力シート!D$50=\"YES\",\"○\",\"-\")","v":"-"}]
[null,{"$f":"入力シート!D$28","v":0},null,null,null,null,null,null,null,null,null,null,null,null,null,null,null,null,null,null,null,null,null,null,null,null,null,null,null,null,null,null,null,{"$f":"入力シート!D$13","v":0},null,null,null,null,null,null,null,null,null,null,null,null,null,null,null,null,null,null,null,null,null,null,null,{"$f":"入力シート!D$18","v":0},null,null,null,null,null,null,null,null,null,null,null,null,null,null,null,null,null,null,null,null,null,null,null,{"$f":"入力シート!D$23","v":0},null,null,null,null,null,null,null,null,null,null,null,null,null,null,null,null,null,null,null,null,null,null,null,null,null,null,null,null,null,{"$f":"入力シート!D$38","v":"00:00:00"},null,null,null,null,null,null,null,null,null,null,null,{"$f":"入力シート!D$43","v":"東京都千代田区大手町2丁目6番4号"}]
[null,null,null,null,null,null,null,null,null,null,null,null,null,null,null,null,null,null,null,null,null,{"$f":"入力シート!D$33","v":0},null,null,null,null,null,null,null,null,null,null,null,{"$f":"入力シート!D$14","v":0},null,null,null,null,null,null,null,null,null,null,null,null,null,null,null,null,null,null,null,null,null,null,null,{"$f":"入力シート!D$19","v":0},null,null,null,null,null,null,null,null,null,null,null,null,null,null,null,null,null,null,null,null,null,null,null,{"$f":"入力シート!D$24","v":0},null,null,null,null,null,null,null,null,null,null,null,null,null,null,null,null,null,null,null,null,null,null,null,null,null,null,null,null,null,"~",null,null,null,null,null,null,null,null,null,null,null,{"$f":"入力シート!D$44","v":0}]
[null,{"$f":"入力シート!D$29","v":0},null,null,null,null,null,null,null,null,null,null,null,null,null,null,null,null,null,null,null,null,null,null,null,null,null,null,null,null,null,null,null,{"$f":"入力シート!D$15","v":0},null,null,null,null,null,null,null,null,null,null,null,null,null,null,null,null,null,null,null,null,null,null,null,{"$f":"入力シート!D$20","v":0},null,null,null,null,null,null,null,null,null,null,null,null,null,null,null,null,null,null,null,null,null,null,null,{"$f":"入力シート!D$25","v":0},null,null,null,null,null,null,null,null,null,null,null,null,null,null,null,null,null,null,null,null,null,null,null,null,null,null,null,null,null,{"$f":"入力シート!D$39","v":"00:00:00"},null,null,null,null,null,null,null,null,null,null,null,{"$f":"入力シート!D$45","v":"Tokio Marine & Nichido Fire Insurance Co.,Ltd."}]
[null,null,null,null,null,null,null,null,null,null,null,null,null,null,null,null,null,null,null,null,null,null,null,null,null,null,null,null,null,null,null,null,null,{"$f":"入力シート!D$16","v":0},null,null,null,null,null,null,null,null,null,null,null,null,null,null,null,null,null,null,null,null,null,null,null,{"$f":"入力シート!D$21","v":0},null,null,null,null,null,null,null,null,null,null,null,null,null,null,null,null,null,null,null,null,null,null,null,{"$f":"入力シート!D$26","v":0},null,null,null,null,null,null,null,null,null,null,null,null,null,null,null,null,null,null,null,null,null,null,null,null,null,null,null,null,null,null,null,null,null,null,null,null,null,null,null,null,null,{"$f":"入力シート!D$46","v":"2-6-4 Otemachi, Chiyoda-ku, Tokyo, Japan"}]
[2,{"$f":"入力シート!E$27","v":0},null,null,null,null,null,null,null,{"$f":"入力シート!E$30","v":0},null,null,null,null,null,{"$f":"入力シート!E$31","v":0},null,null,null,null,null,{"$f":"入力シート!E$32","v":0},null,null,null,null,null,{"$f":"入力シート!E$34","v":0},null,null,null,null,null,{"$f":"入力シート!E$12","v":0},null,null,null,null,null,null,null,null,null,null,null,null,null,null,null,null,null,null,null,null,null,null,null,{"$f":"入力シート!E$17","v":0},null,null,null,null,null,null,null,null,null,null,null,null,null,null,null,null,null,null,null,null,null,null,null,{"$f":"入力シート!E$22","v":0},null,null,null,null,null,null,null,null,null,null,null,null,null,null,null,null,null,null,null,null,null,null,{"$f":"入力シート!E$36","v":0},null,null,null,null,null,null,null,null,null,null,null,{"$f":"入力シート!E$41","v":0},{"$f":"入力シート!E$40","v":0},null,null,null,null,null,{"$f":"入力シート!E$42","v":0},null,null,null,null,null,null,null,null,null,null,null,null,null,null,null,null,null,null,null,null,null,null,null,null,null,null,{"$f":"入力シート!E$51","v":"-"},null,null,null,{"$f":"IF(OR(入力シート!E$53=\"○\",入力シート!E$55=\"○\"),\"○\",\"-\")","v":"-"},null,null,null,{"$f":"IF(OR(入力シート!E$52=\"○\",入力シート!E$54=\"○\"),\"○\",\"-\")","v":"-"},null,null,null,{"$f":"IF(入力シート!E$50=\"YES\",\"○\",\"-\")","v":"-"}]
[null,{"$f":"入力シート!E$28","v":0},null,null,null,null,null,null,null,null,null,null,null,null,null,null,null,null,null,null,null,null,null,null,null,null,null,null,null,null,null,null,null,{"$f":"入力シート!E$13","v":0},null,null,null,null,null,null,null,null,null,null,null,null,null,null,null,null,null,null,null,null,null,null,null,{"$f":"入力シート!E$18","v":0},null,null,null,null,null,null,null,null,null,null,null,null,null,null,null,null,null,null,null,null,null,null,null,{"$f":"入力シート!E$23","v":0},null,null,null,null,null,null,null,null,null,null,null,null,null,null,null,null,null,null,null,null,null,null,null,null,null,null,null,null,null,{"$f":"IF(入力シート!E$38=\"\",\"\",入力シート!E$38)","v":""},null,null,null,null,null,null,null,null,null,null,null,{"$f":"入力シート!E$43","v":""}]
[null,null,null,null,null,null,null,null,null,null,null,null,null,null,null,null,null,null,null,null,null,{"$f":"入力シート!E$33","v":0},null,null,null,null,null,null,null,null,null,null,null,{"$f":"入力シート!E$14","v":0},null,null,null,null,null,null,null,null,null,null,null,null,null,null,null,null,null,null,null,null,null,null,null,{"$f":"入力シート!E$19","v":0},null,null,null,null,null,null,null,null,null,null,null,null,null,null,null,null,null,null,null,null,null,null,null,{"$f":"入力シート!E$24","v":0},null,null,null,null,null,null,null,null,null,null,null,null,null,null,null,null,null,null,null,null,null,null,null,null,null,null,null,null,null,"~",null,null,null,null,null,null,null,null,null,null,null,{"$f":"入力シート!E$44","v":0}]
[null,{"$f":"入力シート!E$29","v":0},null,null,null,null,null,null,null,null,null,null,null,null,null,null,null,null,null,null,null,null,null,null,null,null,null,null,null,null,null,null,null,{"$f":"入力シート!E$15","v":0},null,null,null,null,null,null,null,null,null,null,null,null,null,null,null,null,null,null,null,null,null,null,null,{"$f":"入力シート!E$20","v":0},null,null,null,null,null,null,null,null,null,null,null,null,null,null,null,null,null,null,null,null,null,null,null,{"$f":"入力シート!E$25","v":0},null,null,null,null,null,null,null,null,null,null,null,null,null,null,null,null,null,null,null,null,null,null,null,null,null,null,null,null,null,{"$f":"IF(入力シート!E$39=\"\",\"\",入力シート!E$39)","v":""},null,null,null,null,null,null,null,null,null,null,null,{"$f":"入力シート!E$45","v":""}]
[null,null,null,null,null,null,null,null,null,null,null,null,null,null,null,null,null,null,null,null,null,null,null,null,null,null,null,null,null,null,null,null,null,{"$f":"入力シート!E$16","v":0},null,null,null,null,null,null,null,null,null,null,null,null,null,null,null,null,null,null,null,null,null,null,null,{"$f":"入力シート!E$21","v":0},null,null,null,null,null,null,null,null,null,null,null,null,null,null,null,null,null,null,null,null,null,null,null,{"$f":"入力シート!E$26","v":0},null,null,null,null,null,null,null,null,null,null,null,null,null,null,null,null,null,null,null,null,null,null,null,null,null,null,null,null,null,null,null,null,null,null,null,null,null,null,null,null,null,{"$f":"入力シート!E$46","v":""}]
[3,{"$f":"入力シート!F$27","v":0},null,null,null,null,null,null,null,{"$f":"入力シート!F$30","v":0},null,null,null,null,null,{"$f":"入力シート!F$31","v":0},null,null,null,null,null,{"$f":"入力シート!F$32","v":0},null,null,null,null,null,{"$f":"入力シート!F$34","v":0},null,null,null,null,null,{"$f":"入力シート!F$12","v":0},null,null,null,null,null,null,null,null,null,null,null,null,null,null,null,null,null,null,null,null,null,null,null,{"$f":"入力シート!F$17","v":0},null,null,null,null,null,null,null,null,null,null,null,null,null,null,null,null,null,null,null,null,null,null,null,{"$f":"入力シート!F$22","v":0},null,null,null,null,null,null,null,null,null,null,null,null,null,null,null,null,null,null,null,null,null,null,{"$f":"入力シート!F$36","v":0},null,null,null,null,null,null,null,null,null,null,null,{"$f":"入力シート!F$41","v":0},{"$f":"入力シート!F$40","v":0},null,null,null,null,null,{"$f":"入力シート!F$42","v":0},null,null,null,null,null,null,null,null,null,null,null,null,null,null,null,null,null,null,null,null,null,null,null,null,null,null,{"$f":"入力シート!F$51","v":"-"},null,null,null,{"$f":"IF(OR(入力シート!F$53=\"○\",入力シート!F$55=\"○\"),\"○\",\"-\")","v":"-"},null,null,null,{"$f":"IF(OR(入力シート!F$52=\"○\",入力シート!F$54=\"○\"),\"○\",\"-\")","v":"-"},null,null,null,{"$f":"IF(入力シート!F$50=\"YES\",\"○\",\"-\")","v":"-"}]
[null,{"$f":"入力シート!F$28","v":0},null,null,null,null,null,null,null,null,null,null,null,null,null,null,null,null,null,null,null,null,null,null,null,null,null,null,null,null,null,null,null,{"$f":"入力シート!F$13","v":0},null,null,null,null,null,null,null,null,null,null,null,null,null,null,null,null,null,null,null,null,null,null,null,{"$f":"入力シート!F$18","v":0},null,null,null,null,null,null,null,null,null,null,null,null,null,null,null,null,null,null,null,null,null,null,null,{"$f":"入力シート!F$23","v":0},null,null,null,null,null,null,null,null,null,null,null,null,null,null,null,null,null,null,null,null,null,null,null,null,null,null,null,null,null,{"$f":"IF(入力シート!F$38=\"\",\"\",入力シート!F$38)","v":""},null,null,null,null,null,null,null,null,null,null,null,{"$f":"入力シート!F$43","v":""}]
[null,null,null,null,null,null,null,null,null,null,null,null,null,null,null,null,null,null,null,null,null,{"$f":"入力シート!F$33","v":0},null,null,null,null,null,null,null,null,null,null,null,{"$f":"入力シート!F$14","v":0},null,null,null,null,null,null,null,null,null,null,null,null,null,null,null,null,null,null,null,null,null,null,null,{"$f":"入力シート!F$19","v":0},null,null,null,null,null,null,null,null,null,null,null,null,null,null,null,null,null,null,null,null,null,null,null,{"$f":"入力シート!F$24","v":0},null,null,null,null,null,null,null,null,null,null,null,null,null,null,null,null,null,null,null,null,null,null,null,null,null,null,null,null,null,"~",null,null,null,null,null,null,null,null,null,null,null,{"$f":"入力シート!F$44","v":0}]
[null,{"$f":"入力シート!F$29","v":0},null,null,null,null,null,null,null,null,null,null,null,null,null,null,null,null,null,null,null,null,null,null,null,null,null,null,null,null,null,null,null,{"$f":"入力シート!F$15","v":0},null,null,null,null,null,null,null,null,null,null,null,null,null,null,null,null,null,null,null,null,null,null,null,{"$f":"入力シート!F$20","v":0},null,null,null,null,null,null,null,null,null,null,null,null,null,null,null,null,null,null,null,null,null,null,null,{"$f":"入力シート!F$25","v":0},null,null,null,null,null,null,null,null,null,null,null,null,null,null,null,null,null,null,null,null,null,null,null,null,null,null,null,null,null,{"$f":"IF(入力シート!F$39=\"\",\"\",入力シート!F$39)","v":""},null,null,null,null,null,null,null,null,null,null,null,{"$f":"入力シート!F$45","v":""}]
[null,null,null,null,null,null,null,null,null,null,null,null,null,null,null,null,null,null,null,null,null,null,null,null,null,null,null,null,null,null,null,null,null,{"$f":"入力シート!F$16","v":0},null,null,null,null,null,null,null,null,null,null,null,null,null,null,null,null,null,null,null,null,null,null,null,{"$f":"入力シート!F$21","v":0},null,null,null,null,null,null,null,null,null,null,null,null,null,null,null,null,null,null,null,null,null,null,null,{"$f":"入力シート!F$26","v":0},null,null,null,null,null,null,null,null,null,null,null,null,null,null,null,null,null,null,null,null,null,null,null,null,null,null,null,null,null,null,null,null,null,null,null,null,null,null,null,null,null,{"$f":"入力シート!F$46","v":""}]
[4,{"$f":"入力シート!G$27","v":0},null,null,null,null,null,null,null,{"$f":"入力シート!G$30","v":0},null,null,null,null,null,{"$f":"入力シート!G$31","v":0},null,null,null,null,null,{"$f":"入力シート!G$32","v":0},null,null,null,null,null,{"$f":"入力シート!G$34","v":0},null,null,null,null,null,{"$f":"入力シート!G$12","v":0},null,null,null,null,null,null,null,null,null,null,null,null,null,null,null,null,null,null,null,null,null,null,null,{"$f":"入力シート!G$17","v":0},null,null,null,null,null,null,null,null,null,null,null,null,null,null,null,null,null,null,null,null,null,null,null,{"$f":"入力シート!G$22","v":0},null,null,null,null,null,null,null,null,null,null,null,null,null,null,null,null,null,null,null,null,null,null,{"$f":"入力シート!G$36","v":0},null,null,null,null,null,null,null,null,null,null,null,{"$f":"入力シート!G$41","v":0},{"$f":"入力シート!G$40","v":0},null,null,null,null,null,{"$f":"入力シート!G$42","v":0},null,null,null,null,null,null,null,null,null,null,null,null,null,null,null,null,null,null,null,null,null,null,null,null,null,null,{"$f":"入力シート!G$51","v":"-"},null,null,null,{"$f":"IF(OR(入力シート!G$53=\"○\",入力シート!G$55=\"○\"),\"○\",\"-\")","v":"-"},null,null,null,{"$f":"IF(OR(入力シート!G$52=\"○\",入力シート!G$54=\"○\"),\"○\",\"-\")","v":"-"},null,null,null,{"$f":"IF(入力シート!G$50=\"YES\",\"○\",\"-\")","v":"-"}]
[null,{"$f":"入力シート!G$28","v":0},null,null,null,null,null,null,null,null,null,null,null,null,null,null,null,null,null,null,null,null,null,null,null,null,null,null,null,null,null,null,null,{"$f":"入力シート!G$13","v":0},null,null,null,null,null,null,null,null,null,null,null,null,null,null,null,null,null,null,null,null,null,null,null,{"$f":"入力シート!G$18","v":0},null,null,null,null,null,null,null,null,null,null,null,null,null,null,null,null,null,null,null,null,null,null,null,{"$f":"入力シート!G$23","v":0},null,null,null,null,null,null,null,null,null,null,null,null,null,null,null,null,null,null,null,null,null,null,null,null,null,null,null,null,null,{"$f":"IF(入力シート!G$38=\"\",\"\",入力シート!G$38)","v":""},null,null,null,null,null,null,null,null,null,null,null,{"$f":"入力シート!G$43","v":""}]
[null,null,null,null,null,null,null,null,null,null,null,null,null,null,null,null,null,null,null,null,null,{"$f":"入力シート!G$33","v":0},null,null,null,null,null,null,null,null,null,null,null,{"$f":"入力シート!G$14","v":0},null,null,null,null,null,null,null,null,null,null,null,null,null,null,null,null,null,null,null,null,null,null,null,{"$f":"入力シート!G$19","v":0},null,null,null,null,null,null,null,null,null,null,null,null,null,null,null,null,null,null,null,null,null,null,null,{"$f":"入力シート!G$24","v":0},null,null,null,null,null,null,null,null,null,null,null,null,null,null,null,null,null,null,null,null,null,null,null,null,null,null,null,null,null,"~",null,null,null,null,null,null,null,null,null,null,null,{"$f":"入力シート!G$44","v":0}]
[null,{"$f":"入力シート!G$29","v":0},null,null,null,null,null,null,null,null,null,null,null,null,null,null,null,null,null,null,null,null,null,null,null,null,null,null,null,null,null,null,null,{"$f":"入力シート!G$15","v":0},null,null,null,null,null,null,null,null,null,null,null,null,null,null,null,null,null,null,null,null,null,null,null,{"$f":"入力シート!G$20","v":0},null,null,null,null,null,null,null,null,null,null,null,null,null,null,null,null,null,null,null,null,null,null,null,{"$f":"入力シート!G$25","v":0},null,null,null,null,null,null,null,null,null,null,null,null,null,null,null,null,null,null,null,null,null,null,null,null,null,null,null,null,null,{"$f":"IF(入力シート!G$39=\"\",\"\",入力シート!G$39)","v":""},null,null,null,null,null,null,null,null,null,null,null,{"$f":"入力シート!G$45","v":""}]
[null,null,null,null,null,null,null,null,null,null,null,null,null,null,null,null,null,null,null,null,null,null,null,null,null,null,null,null,null,null,null,null,null,{"$f":"入力シート!G$16","v":0},null,null,null,null,null,null,null,null,null,null,null,null,null,null,null,null,null,null,null,null,null,null,null,{"$f":"入力シート!G$21","v":0},null,null,null,null,null,null,null,null,null,null,null,null,null,null,null,null,null,null,null,null,null,null,null,{"$f":"入力シート!G$26","v":0},null,null,null,null,null,null,null,null,null,null,null,null,null,null,null,null,null,null,null,null,null,null,null,null,null,null,null,null,null,null,null,null,null,null,null,null,null,null,null,null,null,{"$f":"入力シート!G$46","v":""}]
[5,{"$f":"入力シート!H$27","v":0},null,null,null,null,null,null,null,{"$f":"入力シート!H$30","v":0},null,null,null,null,null,{"$f":"入力シート!H$31","v":0},null,null,null,null,null,{"$f":"入力シート!H$32","v":0},null,null,null,null,null,{"$f":"入力シート!H$34","v":0},null,null,null,null,null,{"$f":"入力シート!H$12","v":0},null,null,null,null,null,null,null,null,null,null,null,null,null,null,null,null,null,null,null,null,null,null,null,{"$f":"入力シート!H$17","v":0},null,null,null,null,null,null,null,null,null,null,null,null,null,null,null,null,null,null,null,null,null,null,null,{"$f":"入力シート!H$22","v":0},null,null,null,null,null,null,null,null,null,null,null,null,null,null,null,null,null,null,null,null,null,null,{"$f":"入力シート!H$36","v":0},null,null,null,null,null,null,null,null,null,null,null,{"$f":"入力シート!H$41","v":0},{"$f":"入力シート!H$40","v":0},null,null,null,null,null,{"$f":"入力シート!H$42","v":0},null,null,null,null,null,null,null,null,null,null,null,null,null,null,null,null,null,null,null,null,null,null,null,null,null,null,{"$f":"入力シート!H$51","v":"-"},null,null,null,{"$f":"IF(OR(入力シート!H$53=\"○\",入力シート!H$55=\"○\"),\"○\",\"-\")","v":"-"},null,null,null,{"$f":"IF(OR(入力シート!H$52=\"○\",入力シート!H$54=\"○\"),\"○\",\"-\")","v":"-"},null,null,null,{"$f":"IF(入力シート!H$50=\"YES\",\"○\",\"-\")","v":"-"}]
[null,{"$f":"入力シート!H$28","v":0},null,null,null,null,null,null,null,null,null,null,null,null,null,null,null,null,null,null,null,null,null,null,null,null,null,null,null,null,null,null,null,{"$f":"入力シート!H$13","v":0},null,null,null,null,null,null,null,null,null,null,null,null,null,null,null,null,null,null,null,null,null,null,null,{"$f":"入力シート!H$18","v":0},null,null,null,null,null,null,null,null,null,null,null,null,null,null,null,null,null,null,null,null,null,null,null,{"$f":"入力シート!H$23","v":0},null,null,null,null,null,null,null,null,null,null,null,null,null,null,null,null,null,null,null,null,null,null,null,null,null,null,null,null,null,{"$f":"IF(入力シート!H$38=\"\",\"\",入力シート!H$38)","v":""},null,null,null,null,null,null,null,null,null,null,null,{"$f":"入力シート!H$43","v":""}]
[null,null,null,null,null,null,null,null,null,null,null,null,null,null,null,null,null,null,null,null,null,{"$f":"入力シート!H$33","v":0},null,null,null,null,null,null,null,null,null,null,null,{"$f":"入力シート!H$14","v":0},null,null,null,null,null,null,null,null,null,null,null,null,null,null,null,null,null,null,null,null,null,null,null,{"$f":"入力シート!H$19","v":0},null,null,null,null,null,null,null,null,null,null,null,null,null,null,null,null,null,null,null,null,null,null,null,{"$f":"入力シート!H$24","v":0},null,null,null,null,null,null,null,null,null,null,null,null,null,null,null,null,null,null,null,null,null,null,null,null,null,null,null,null,null,"~",null,null,null,null,null,null,null,null,null,null,null,{"$f":"入力シート!H$44","v":0}]
[null,{"$f":"入力シート!H$29","v":0},null,null,null,null,null,null,null,null,null,null,null,null,null,null,null,null,null,null,null,null,null,null,null,null,null,null,null,null,null,null,null,{"$f":"入力シート!H$15","v":0},null,null,null,null,null,null,null,null,null,null,null,null,null,null,null,null,null,null,null,null,null,null,null,{"$f":"入力シート!H$20","v":0},null,null,null,null,null,null,null,null,null,null,null,null,null,null,null,null,null,null,null,null,null,null,null,{"$f":"入力シート!H$25","v":0},null,null,null,null,null,null,null,null,null,null,null,null,null,null,null,null,null,null,null,null,null,null,null,null,null,null,null,null,null,{"$f":"IF(入力シート!H$39=\"\",\"\",入力シート!H$39)","v":""},null,null,null,null,null,null,null,null,null,null,null,{"$f":"入力シート!H$45","v":""}]
[null,null,null,null,null,null,null,null,null,null,null,null,null,null,null,null,null,null,null,null,null,null,null,null,null,null,null,null,null,null,null,null,null,{"$f":"入力シート!H$16","v":0},null,null,null,null,null,null,null,null,null,null,null,null,null,null,null,null,null,null,null,null,null,null,null,{"$f":"入力シート!H$21","v":0},null,null,null,null,null,null,null,null,null,null,null,null,null,null,null,null,null,null,null,null,null,null,null,{"$f":"入力シート!H$26","v":0},null,null,null,null,null,null,null,null,null,null,null,null,null,null,null,null,null,null,null,null,null,null,null,null,null,null,null,null,null,null,null,null,null,null,null,null,null,null,null,null,null,{"$f":"入力シート!H$46","v":""}]
[6,{"$f":"入力シート!I$27","v":0},null,null,null,null,null,null,null,{"$f":"入力シート!I$30","v":0},null,null,null,null,null,{"$f":"入力シート!I$31","v":0},null,null,null,null,null,{"$f":"入力シート!I$32","v":0},null,null,null,null,null,{"$f":"入力シート!I$34","v":0},null,null,null,null,null,{"$f":"入力シート!I$12","v":0},null,null,null,null,null,null,null,null,null,null,null,null,null,null,null,null,null,null,null,null,null,null,null,{"$f":"入力シート!I$17","v":0},null,null,null,null,null,null,null,null,null,null,null,null,null,null,null,null,null,null,null,null,null,null,null,{"$f":"入力シート!I$22","v":0},null,null,null,null,null,null,null,null,null,null,null,null,null,null,null,null,null,null,null,null,null,null,{"$f":"入力シート!I$36","v":0},null,null,null,null,null,null,null,null,null,null,null,{"$f":"入力シート!I$41","v":0},{"$f":"入力シート!I$40","v":0},null,null,null,null,null,{"$f":"入力シート!I$42","v":0},null,null,null,null,null,null,null,null,null,null,null,null,null,null,null,null,null,null,null,null,null,null,null,null,null,null,{"$f":"入力シート!I$51","v":"-"},null,null,null,{"$f":"IF(OR(入力シート!I$53=\"○\",入力シート!I$55=\"○\"),\"○\",\"-\")","v":"-"},null,null,null,{"$f":"IF(OR(入力シート!I$52=\"○\",入力シート!I$54=\"○\"),\"○\",\"-\")","v":"-"},null,null,null,{"$f":"IF(入力シート!I$50=\"YES\",\"○\",\"-\")","v":"-"}]
[null,{"$f":"入力シート!I$28","v":0},null,null,null,null,null,null,null,null,null,null,null,null,null,null,null,null,null,null,null,null,null,null,null,null,null,null,null,null,null,null,null,{"$f":"入力シート!I$13","v":0},null,null,null,null,null,null,null,null,null,null,null,null,null,null,null,null,null,null,null,null,null,null,null,{"$f":"入力シート!I$18","v":0},null,null,null,null,null,null,null,null,null,null,null,null,null,null,null,null,null,null,null,null,null,null,null,{"$f":"入力シート!I$23","v":0},null,null,null,null,null,null,null,null,null,null,null,null,null,null,null,null,null,null,null,null,null,null,null,null,null,null,null,null,null,{"$f":"IF(入力シート!I$38=\"\",\"\",入力シート!I$38)","v":""},null,null,null,null,null,null,null,null,null,null,null,{"$f":"入力シート!I$43","v":""}]
[null,null,null,null,null,null,null,null,null,null,null,null,null,null,null,null,null,null,null,null,null,{"$f":"入力シート!I$33","v":0},null,null,null,null,null,null,null,null,null,null,null,{"$f":"入力シート!I$14","v":0},null,null,null,null,null,null,null,null,null,null,null,null,null,null,null,null,null,null,null,null,null,null,null,{"$f":"入力シート!I$19","v":0},null,null,null,null,null,null,null,null,null,null,null,null,null,null,null,null,null,null,null,null,null,null,null,{"$f":"入力シート!I$24","v":0},null,null,null,null,null,null,null,null,null,null,null,null,null,null,null,null,null,null,null,null,null,null,null,null,null,null,null,null,null,"~",null,null,null,null,null,null,null,null,null,null,null,{"$f":"入力シート!I$44","v":0}]
[null,{"$f":"入力シート!I$29","v":0},null,null,null,null,null,null,null,null,null,null,null,null,null,null,null,null,null,null,null,null,null,null,null,null,null,null,null,null,null,null,null,{"$f":"入力シート!I$15","v":0},null,null,null,null,null,null,null,null,null,null,null,null,null,null,null,null,null,null,null,null,null,null,null,{"$f":"入力シート!I$20","v":0},null,null,null,null,null,null,null,null,null,null,null,null,null,null,null,null,null,null,null,null,null,null,null,{"$f":"入力シート!I$25","v":0},null,null,null,null,null,null,null,null,null,null,null,null,null,null,null,null,null,null,null,null,null,null,null,null,null,null,null,null,null,{"$f":"IF(入力シート!I$39=\"\",\"\",入力シート!I$39)","v":""},null,null,null,null,null,null,null,null,null,null,null,{"$f":"入力シート!I$45","v":""}]
[null,null,null,null,null,null,null,null,null,null,null,null,null,null,null,null,null,null,null,null,null,null,null,null,null,null,null,null,null,null,null,null,null,{"$f":"入力シート!I$16","v":0},null,null,null,null,null,null,null,null,null,null,null,null,null,null,null,null,null,null,null,null,null,null,null,{"$f":"入力シート!I$21","v":0},null,null,null,null,null,null,null,null,null,null,null,null,null,null,null,null,null,null,null,null,null,null,null,{"$f":"入力シート!I$26","v":0},null,null,null,null,null,null,null,null,null,null,null,null,null,null,null,null,null,null,null,null,null,null,null,null,null,null,null,null,null,null,null,null,null,null,null,null,null,null,null,null,null,{"$f":"入力シート!I$46","v":""}]
[7,{"$f":"入力シート!J$27","v":0},null,null,null,null,null,null,null,{"$f":"入力シート!J$30","v":0},null,null,null,null,null,{"$f":"入力シート!J$31","v":0},null,null,null,null,null,{"$f":"入力シート!J$32","v":0},null,null,null,null,null,{"$f":"入力シート!J$34","v":0},null,null,null,null,null,{"$f":"入力シート!J$12","v":0},null,null,null,null,null,null,null,null,null,null,null,null,null,null,null,null,null,null,null,null,null,null,null,{"$f":"入力シート!J$17","v":0},null,null,null,null,null,null,null,null,null,null,null,null,null,null,null,null,null,null,null,null,null,null,null,{"$f":"入力シート!J$22","v":0},null,null,null,null,null,null,null,null,null,null,null,null,null,null,null,null,null,null,null,null,null,null,{"$f":"入力シート!J$36","v":0},null,null,null,null,null,null,null,null,null,null,null,{"$f":"入力シート!J$41","v":0},{"$f":"入力シート!J$40","v":0},null,null,null,null,null,{"$f":"入力シート!J$42","v":0},null,null,null,null,null,null,null,null,null,null,null,null,null,null,null,null,null,null,null,null,null,null,null,null,null,null,{"$f":"入力シート!J$51","v":"-"},null,null,null,{"$f":"IF(OR(入力シート!J$53=\"○\",入力シート!J$55=\"○\"),\"○\",\"-\")","v":"-"},null,null,null,{"$f":"IF(OR(入力シート!J$52=\"○\",入力シート!J$54=\"○\"),\"○\",\"-\")","v":"-"},null,null,null,{"$f":"IF(入力シート!J$50=\"YES\",\"○\",\"-\")","v":"-"}]
[null,{"$f":"入力シート!J$28","v":0},null,null,null,null,null,null,null,null,null,null,null,null,null,null,null,null,null,null,null,null,null,null,null,null,null,null,null,null,null,null,null,{"$f":"入力シート!J$13","v":0},null,null,null,null,null,null,null,null,null,null,null,null,null,null,null,null,null,null,null,null,null,null,null,{"$f":"入力シート!J$18","v":0},null,null,null,null,null,null,null,null,null,null,null,null,null,null,null,null,null,null,null,null,null,null,null,{"$f":"入力シート!J$23","v":0},null,null,null,null,null,null,null,null,null,null,null,null,null,null,null,null,null,null,null,null,null,null,null,null,null,null,null,null,null,{"$f":"IF(入力シート!J$38=\"\",\"\",入力シート!J$38)","v":""},null,null,null,null,null,null,null,null,null,null,null,{"$f":"入力シート!J$43","v":""}]
[null,null,null,null,null,null,null,null,null,null,null,null,null,null,null,null,null,null,null,null,null,{"$f":"入力シート!J$33","v":0},null,null,null,null,null,null,null,null,null,null,null,{"$f":"入力シート!J$14","v":0},null,null,null,null,null,null,null,null,null,null,null,null,null,null,null,null,null,null,null,null,null,null,null,{"$f":"入力シート!J$19","v":0},null,null,null,null,null,null,null,null,null,null,null,null,null,null,null,null,null,null,null,null,null,null,null,{"$f":"入力シート!J$24","v":0},null,null,null,null,null,null,null,null,null,null,null,null,null,null,null,null,null,null,null,null,null,null,null,null,null,null,null,null,null,"~",null,null,null,null,null,null,null,null,null,null,null,{"$f":"入力シート!J$44","v":0}]
[null,{"$f":"入力シート!J$29","v":0},null,null,null,null,null,null,null,null,null,null,null,null,null,null,null,null,null,null,null,null,null,null,null,null,null,null,null,null,null,null,null,{"$f":"入力シート!J$15","v":0},null,null,null,null,null,null,null,null,null,null,null,null,null,null,null,null,null,null,null,null,null,null,null,{"$f":"入力シート!J$20","v":0},null,null,null,null,null,null,null,null,null,null,null,null,null,null,null,null,null,null,null,null,null,null,null,{"$f":"入力シート!J$25","v":0},null,null,null,null,null,null,null,null,null,null,null,null,null,null,null,null,null,null,null,null,null,null,null,null,null,null,null,null,null,{"$f":"IF(入力シート!J$39=\"\",\"\",入力シート!J$39)","v":""},null,null,null,null,null,null,null,null,null,null,null,{"$f":"入力シート!J$45","v":""}]
[null,null,null,null,null,null,null,null,null,null,null,null,null,null,null,null,null,null,null,null,null,null,null,null,null,null,null,null,null,null,null,null,null,{"$f":"入力シート!J$16","v":0},null,null,null,null,null,null,null,null,null,null,null,null,null,null,null,null,null,null,null,null,null,null,null,{"$f":"入力シート!J$21","v":0},null,null,null,null,null,null,null,null,null,null,null,null,null,null,null,null,null,null,null,null,null,null,null,{"$f":"入力シート!J$26","v":0},null,null,null,null,null,null,null,null,null,null,null,null,null,null,null,null,null,null,null,null,null,null,null,null,null,null,null,null,null,null,null,null,null,null,null,null,null,null,null,null,null,{"$f":"入力シート!J$46","v":""}]
[8,{"$f":"入力シート!K$27","v":0},null,null,null,null,null,null,null,{"$f":"入力シート!K$30","v":0},null,null,null,null,null,{"$f":"入力シート!K$31","v":0},null,null,null,null,null,{"$f":"入力シート!K$32","v":0},null,null,null,null,null,{"$f":"入力シート!K$34","v":0},null,null,null,null,null,{"$f":"入力シート!K$12","v":0},null,null,null,null,null,null,null,null,null,null,null,null,null,null,null,null,null,null,null,null,null,null,null,{"$f":"入力シート!K$17","v":0},null,null,null,null,null,null,null,null,null,null,null,null,null,null,null,null,null,null,null,null,null,null,null,{"$f":"入力シート!K$22","v":0},null,null,null,null,null,null,null,null,null,null,null,null,null,null,null,null,null,null,null,null,null,null,{"$f":"入力シート!K$36","v":0},null,null,null,null,null,null,null,null,null,null,null,{"$f":"入力シート!K$41","v":0},{"$f":"入力シート!K$40","v":0},null,null,null,null,null,{"$f":"入力シート!K$42","v":0},null,null,null,null,null,null,null,null,null,null,null,null,null,null,null,null,null,null,null,null,null,null,null,null,null,null,{"$f":"入力シート!K$51","v":"-"},null,null,null,{"$f":"IF(OR(入力シート!K$53=\"○\",入力シート!K$55=\"○\"),\"○\",\"-\")","v":"-"},null,null,null,{"$f":"IF(OR(入力シート!K$52=\"○\",入力シート!K$54=\"○\"),\"○\",\"-\")","v":"-"},null,null,null,{"$f":"IF(入力シート!K$50=\"YES\",\"○\",\"-\")","v":"-"}]
[null,{"$f":"入力シート!K$28","v":0},null,null,null,null,null,null,null,null,null,null,null,null,null,null,null,null,null,null,null,null,null,null,null,null,null,null,null,null,null,null,null,{"$f":"入力シート!K$13","v":0},null,null,null,null,null,null,null,null,null,null,null,null,null,null,null,null,null,null,null,null,null,null,null,{"$f":"入力シート!K$18","v":0},null,null,null,null,null,null,null,null,null,null,null,null,null,null,null,null,null,null,null,null,null,null,null,{"$f":"入力シート!K$23","v":0},null,null,null,null,null,null,null,null,null,null,null,null,null,null,null,null,null,null,null,null,null,null,null,null,null,null,null,null,null,{"$f":"IF(入力シート!K$38=\"\",\"\",入力シート!K$38)","v":""},null,null,null,null,null,null,null,null,null,null,null,{"$f":"入力シート!K$43","v":""}]
[null,null,null,null,null,null,null,null,null,null,null,null,null,null,null,null,null,null,null,null,null,{"$f":"入力シート!K$33","v":0},null,null,null,null,null,null,null,null,null,null,null,{"$f":"入力シート!K$14","v":0},null,null,null,null,null,null,null,null,null,null,null,null,null,null,null,null,null,null,null,null,null,null,null,{"$f":"入力シート!K$19","v":0},null,null,null,null,null,null,null,null,null,null,null,null,null,null,null,null,null,null,null,null,null,null,null,{"$f":"入力シート!K$24","v":0},null,null,null,null,null,null,null,null,null,null,null,null,null,null,null,null,null,null,null,null,null,null,null,null,null,null,null,null,null,"~",null,null,null,null,null,null,null,null,null,null,null,{"$f":"入力シート!K$44","v":0}]
[null,{"$f":"入力シート!K$29","v":0},null,null,null,null,null,null,null,null,null,null,null,null,null,null,null,null,null,null,null,null,null,null,null,null,null,null,null,null,null,null,null,{"$f":"入力シート!K$15","v":0},null,null,null,null,null,null,null,null,null,null,null,null,null,null,null,null,null,null,null,null,null,null,null,{"$f":"入力シート!K$20","v":0},null,null,null,null,null,null,null,null,null,null,null,null,null,null,null,null,null,null,null,null,null,null,null,{"$f":"入力シート!K$25","v":0},null,null,null,null,null,null,null,null,null,null,null,null,null,null,null,null,null,null,null,null,null,null,null,null,null,null,null,null,null,{"$f":"IF(入力シート!K$39=\"\",\"\",入力シート!K$39)","v":""},null,null,null,null,null,null,null,null,null,null,null,{"$f":"入力シート!K$45","v":""}]
[null,null,null,null,null,null,null,null,null,null,null,null,null,null,null,null,null,null,null,null,null,null,null,null,null,null,null,null,null,null,null,null,null,{"$f":"入力シート!K$16","v":0},null,null,null,null,null,null,null,null,null,null,null,null,null,null,null,null,null,null,null,null,null,null,null,{"$f":"入力シート!K$21","v":0},null,null,null,null,null,null,null,null,null,null,null,null,null,null,null,null,null,null,null,null,null,null,null,{"$f":"入力シート!K$26","v":0},null,null,null,null,null,null,null,null,null,null,null,null,null,null,null,null,null,null,null,null,null,null,null,null,null,null,null,null,null,null,null,null,null,null,null,null,null,null,null,null,null,{"$f":"入力シート!K$46","v":""}]
[9,{"$f":"入力シート!L$27","v":0},null,null,null,null,null,null,null,{"$f":"入力シート!L$30","v":0},null,null,null,null,null,{"$f":"入力シート!L$31","v":0},null,null,null,null,null,{"$f":"入力シート!L$32","v":0},null,null,null,null,null,{"$f":"入力シート!L$34","v":0},null,null,null,null,null,{"$f":"入力シート!L$12","v":0},null,null,null,null,null,null,null,null,null,null,null,null,null,null,null,null,null,null,null,null,null,null,null,{"$f":"入力シート!L$17","v":0},null,null,null,null,null,null,null,null,null,null,null,null,null,null,null,null,null,null,null,null,null,null,null,{"$f":"入力シート!L$22","v":0},null,null,null,null,null,null,null,null,null,null,null,null,null,null,null,null,null,null,null,null,null,null,{"$f":"入力シート!L$36","v":0},null,null,null,null,null,null,null,null,null,null,null,{"$f":"入力シート!L$41","v":0},{"$f":"入力シート!L$40","v":0},null,null,null,null,null,{"$f":"入力シート!L$42","v":0},null,null,null,null,null,null,null,null,null,null,null,null,null,null,null,null,null,null,null,null,null,null,null,null,null,null,{"$f":"入力シート!L$51","v":"-"},null,null,null,{"$f":"IF(OR(入力シート!L$53=\"○\",入力シート!L$55=\"○\"),\"○\",\"-\")","v":"-"},null,null,null,{"$f":"IF(OR(入力シート!L$52=\"○\",入力シート!L$54=\"○\"),\"○\",\"-\")","v":"-"},null,null,null,{"$f":"IF(入力シート!L$50=\"YES\",\"○\",\"-\")","v":"-"}]
[null,{"$f":"入力シート!L$28","v":0},null,null,null,null,null,null,null,null,null,null,null,null,null,null,null,null,null,null,null,null,null,null,null,null,null,null,null,null,null,null,null,{"$f":"入力シート!L$13","v":0},null,null,null,null,null,null,null,null,null,null,null,null,null,null,null,null,null,null,null,null,null,null,null,{"$f":"入力シート!L$18","v":0},null,null,null,null,null,null,null,null,null,null,null,null,null,null,null,null,null,null,null,null,null,null,null,{"$f":"入力シート!L$23","v":0},null,null,null,null,null,null,null,null,null,null,null,null,null,null,null,null,null,null,null,null,null,null,null,null,null,null,null,null,null,{"$f":"IF(入力シート!L$38=\"\",\"\",入力シート!L$38)","v":""},null,null,null,null,null,null,null,null,null,null,null,{"$f":"入力シート!L$43","v":""}]
[null,null,null,null,null,null,null,null,null,null,null,null,null,null,null,null,null,null,null,null,null,{"$f":"入力シート!L$33","v":0},null,null,null,null,null,null,null,null,null,null,null,{"$f":"入力シート!L$14","v":0},null,null,null,null,null,null,null,null,null,null,null,null,null,null,null,null,null,null,null,null,null,null,null,{"$f":"入力シート!L$19","v":0},null,null,null,null,null,null,null,null,null,null,null,null,null,null,null,null,null,null,null,null,null,null,null,{"$f":"入力シート!L$24","v":0},null,null,null,null,null,null,null,null,null,null,null,null,null,null,null,null,null,null,null,null,null,null,null,null,null,null,null,null,null,"~",null,null,null,null,null,null,null,null,null,null,null,{"$f":"入力シート!L$44","v":0}]
[null,{"$f":"入力シート!L$29","v":0},null,null,null,null,null,null,null,null,null,null,null,null,null,null,null,null,null,null,null,null,null,null,null,null,null,null,null,null,null,null,null,{"$f":"入力シート!L$15","v":0},null,null,null,null,null,null,null,null,null,null,null,null,null,null,null,null,null,null,null,null,null,null,null,{"$f":"入力シート!L$20","v":0},null,null,null,null,null,null,null,null,null,null,null,null,null,null,null,null,null,null,null,null,null,null,null,{"$f":"入力シート!L$25","v":0},null,null,null,null,null,null,null,null,null,null,null,null,null,null,null,null,null,null,null,null,null,null,null,null,null,null,null,null,null,{"$f":"IF(入力シート!L$39=\"\",\"\",入力シート!L$39)","v":""},null,null,null,null,null,null,null,null,null,null,null,{"$f":"入力シート!L$45","v":""}]
[null,null,null,null,null,null,null,null,null,null,null,null,null,null,null,null,null,null,null,null,null,null,null,null,null,null,null,null,null,null,null,null,null,{"$f":"入力シート!L$16","v":0},null,null,null,null,null,null,null,null,null,null,null,null,null,null,null,null,null,null,null,null,null,null,null,{"$f":"入力シート!L$21","v":0},null,null,null,null,null,null,null,null,null,null,null,null,null,null,null,null,null,null,null,null,null,null,null,{"$f":"入力シート!L$26","v":0},null,null,null,null,null,null,null,null,null,null,null,null,null,null,null,null,null,null,null,null,null,null,null,null,null,null,null,null,null,null,null,null,null,null,null,null,null,null,null,null,null,{"$f":"入力シート!L$46","v":""}]
[10,{"$f":"入力シート!M$27","v":0},null,null,null,null,null,null,null,{"$f":"入力シート!M$30","v":0},null,null,null,null,null,{"$f":"入力シート!M$31","v":0},null,null,null,null,null,{"$f":"入力シート!M$32","v":0},null,null,null,null,null,{"$f":"入力シート!M$34","v":0},null,null,null,null,null,{"$f":"入力シート!M$12","v":0},null,null,null,null,null,null,null,null,null,null,null,null,null,null,null,null,null,null,null,null,null,null,null,{"$f":"入力シート!M$17","v":0},null,null,null,null,null,null,null,null,null,null,null,null,null,null,null,null,null,null,null,null,null,null,null,{"$f":"入力シート!M$22","v":0},null,null,null,null,null,null,null,null,null,null,null,null,null,null,null,null,null,null,null,null,null,null,{"$f":"入力シート!M$36","v":0},null,null,null,null,null,null,null,null,null,null,null,{"$f":"入力シート!M$41","v":0},{"$f":"入力シート!M$40","v":0},null,null,null,null,null,{"$f":"入力シート!M$42","v":0},null,null,null,null,null,null,null,null,null,null,null,null,null,null,null,null,null,null,null,null,null,null,null,null,null,null,{"$f":"入力シート!M$51","v":"-"},null,null,null,{"$f":"IF(OR(入力シート!M$53=\"○\",入力シート!M$55=\"○\"),\"○\",\"-\")","v":"-"},null,null,null,{"$f":"IF(OR(入力シート!M$52=\"○\",入力シート!M$54=\"○\"),\"○\",\"-\")","v":"-"},null,null,null,{"$f":"IF(入力シート!M$50=\"YES\",\"○\",\"-\")","v":"-"}]
[null,{"$f":"入力シート!M$28","v":0},null,null,null,null,null,null,null,null,null,null,null,null,null,null,null,null,null,null,null,null,null,null,null,null,null,null,null,null,null,null,null,{"$f":"入力シート!M$13","v":0},null,null,null,null,null,null,null,null,null,null,null,null,null,null,null,null,null,null,null,null,null,null,null,{"$f":"入力シート!M$18","v":0},null,null,null,null,null,null,null,null,null,null,null,null,null,null,null,null,null,null,null,null,null,null,null,{"$f":"入力シート!M$23","v":0},null,null,null,null,null,null,null,null,null,null,null,null,null,null,null,null,null,null,null,null,null,null,null,null,null,null,null,null,null,{"$f":"IF(入力シート!M$38=\"\",\"\",入力シート!M$38)","v":""},null,null,null,null,null,null,null,null,null,null,null,{"$f":"入力シート!M$43","v":""}]
[null,null,null,null,null,null,null,null,null,null,null,null,null,null,null,null,null,null,null,null,null,{"$f":"入力シート!M$33","v":0},null,null,null,null,null,null,null,null,null,null,null,{"$f":"入力シート!M$14","v":0},null,null,null,null,null,null,null,null,null,null,null,null,null,null,null,null,null,null,null,null,null,null,null,{"$f":"入力シート!M$19","v":0},null,null,null,null,null,null,null,null,null,null,null,null,null,null,null,null,null,null,null,null,null,null,null,{"$f":"入力シート!M$24","v":0},null,null,null,null,null,null,null,null,null,null,null,null,null,null,null,null,null,null,null,null,null,null,null,null,null,null,null,null,null,"~",null,null,null,null,null,null,null,null,null,null,null,{"$f":"入力シート!M$44","v":0}]
[null,{"$f":"入力シート!M$29","v":0},null,null,null,null,null,null,null,null,null,null,null,null,null,null,null,null,null,null,null,null,null,null,null,null,null,null,null,null,null,null,null,{"$f":"入力シート!M$15","v":0},null,null,null,null,null,null,null,null,null,null,null,null,null,null,null,null,null,null,null,null,null,null,null,{"$f":"入力シート!M$20","v":0},null,null,null,null,null,null,null,null,null,null,null,null,null,null,null,null,null,null,null,null,null,null,null,{"$f":"入力シート!M$25","v":0},null,null,null,null,null,null,null,null,null,null,null,null,null,null,null,null,null,null,null,null,null,null,null,null,null,null,null,null,null,{"$f":"IF(入力シート!M$39=\"\",\"\",入力シート!M$39)","v":""},null,null,null,null,null,null,null,null,null,null,null,{"$f":"入力シート!M$45","v":""}]
[null,null,null,null,null,null,null,null,null,null,null,null,null,null,null,null,null,null,null,null,null,null,null,null,null,null,null,null,null,null,null,null,null,{"$f":"入力シート!M$16","v":0},null,null,null,null,null,null,null,null,null,null,null,null,null,null,null,null,null,null,null,null,null,null,null,{"$f":"入力シート!M$21","v":0},null,null,null,null,null,null,null,null,null,null,null,null,null,null,null,null,null,null,null,null,null,null,null,{"$f":"入力シート!M$26","v":0},null,null,null,null,null,null,null,null,null,null,null,null,null,null,null,null,null,null,null,null,null,null,null,null,null,null,null,null,null,null,null,null,null,null,null,null,null,null,null,null,null,{"$f":"入力シート!M$46","v":""}]
[null,null,null,null,null,null,null,null,null,null,null,null,null,null,null,null,null,null,null,null,null,null,null,null,null,null,null,null,null,null,null,null,null,null,null,null,null,null,null,null,null,null,null,null,null,null,null,null,null,null,null,null,null,null,null,null,null,null,null,null,null,null,null,null,null,null,null,null,null,null,null,null,null,null,null,null,null,null,null,null,null,null,null,null,null,null,null,null,null,null,null,null,null,null,null,null,null,null,null,null,null,null,null,null,null,null,null,null,null,null,null,null,null,null,null,null,null,null,null,null,null,null,null,null,null,null,null,null,null,null,null,null,null,null,null,null,null,null,"合計枚数",null,null,null,null,null,null,null,null,null,null,null,{"$f":"COUNTIF(EU22:EX71,\"○\")","v":0},null,null,null,{"$f":"COUNTIF(EY22:FB71,\"○\")","v":0},null,null,null,{"$f":"COUNTIF(FC22:FF71,\"○\")","v":0}]
[null,null,null,null,null,null,null,null,null,null,null,null,null,null,null,null,null,null,null,null,null,null,null,null,null,null,null,null,null,null,null,null,null,null,null,null,null,null,null,null,null,null,null,null,null,null,null,null,null,null,null,null,null,null,null,null,null,null,null,null,null,null,null,null,null,null,null,null,null,null,null,null,null,null,null,null,null,null,null,null,null,null,null,null,null,null,null,null,null,null,null,null,null,null,null,null,null,null,null,null,null,null,null,null,null,null,null,null,null,null,null,null,null,null,null,null,null,null,null,null,null,null,null,null,null,null,null,null,null,null,null,null,null,null,null,null,null,null,"総計",null,null,null,null,null,null,null,null,null,null,null,{"$f":"EU72+EY72+FC72","v":0}]
[]
[null,"手　　数　　料　　納　　付　　欄"]
[]
[null,"収　　　入　　　印　　　紙"]

{"sheet":"リスト","index":2,"n_rows":15,"n_cols":7,"rows_kept":15,"cut":false,"hidden":false,"merged":[]}
["2020-03-31"]
["YES",250000000,"\\","日本船主責任相互保険組合","東京都港区赤坂2丁目23番1号アークヒルズフロントタワー15階","The Japan Ship Owners' Mutual Protection & Indemnity Association","15th Floor, ARK Hills Front Tower, 2-23-1, Akasaka, Minato-ku, Tokyo, Japan"]
["NO",1000000000,"$","日本漁船保険組合","東京都千代田区内幸町1-2-2 日比谷ダイビル9F","Japan Fishing Vessel Insurance Association","9TH FLOOR, HIBIYA DAIBIRU, 1-2-2 UCHISAIWAICHO, CHIYODA-KU, TOKYO, JAPAN"]
[null,2000000000,"€","東京海上日動火災保険株式会社","東京都千代田区大手町2丁目6番4号","Tokio Marine & Nichido Fire Insurance Co.,Ltd.","2-6-4 Otemachi, Chiyoda-ku, Tokyo, Japan"]
[null,5000000000,null,"三井住友海上火災保険株式会社","東京都千代田区神田駿河台三丁目9番地","Mitsui Sumitomo Insurance Co.,Ltd.","9, Kanda Surugadai 3-Chome Chiyoda-ku, Tokyo, Japan"]
[null,8000000000,null,"損害保険ジャパン株式会社","東京都新宿区西新宿1丁目26番1号","Sompo Japan Insurance Inc.","26-1, Nishi-Shinjuku 1-chome, Shinjuku-ku, Tokyo, Japan"]
[null,10000000000,null,"共栄火災海上保険株式会社","東京都港区新橋一丁目18番6号","The Kyoei Fire and Marine Insurance Company, Limited","1-18-6 Shimbashi Minato-ku Tokyo, Japan"]
[null,12000000000,null,"大同火災海上保険株式会社","沖縄県那覇市久茂地1丁目12番1号","The Daido Fire & Marine Insurance Co., Ltd. ","12-1 Kumoji 1-chome Naha, Japan"]
[null,14000000000,null,"ザ・ブリタニヤ・スティーム・シップ・インシュアランス・アソシエーション・リミテッド","東京都港区芝三丁目43番16号","The Britannia Steam Ship Insurance Association Ltd","3-43-16, Shiba, Minato-ku, Tokyo, Japan"]
[null,15000000000,null,"アシュアランスフォアニンゲンガードイェンシディグ 日本支店","東京都港区東新橋1丁目５番２号 汐留シティーセンター８階","Assuranceforeningen Gard - gjensidig - Japan Branch","Shiodome City Center 8F, 1-5-2, Higashi Shinbashi, Minato-ku, Tokyo, Japan"]
[null,"1,000,000,000 ～",null,"Gard P.&I. (Bermuda) Ltd. Singapore Branch",null,{"$f":"\"\"","v":""},"72 Anson Rd, #13-02 Anson House, Singapore 079911, Singapore"]
[null,null,null,"ザ・ブリタニヤ・スティーム・シップ・インシュアランス・アソシエーション・ヨーロッパ","東京都港区芝3-43-16 KDX三田ビル8階","The Britannia Steam Ship Insurance Association Europe","8th Floor, KDX Mita Building, 3-43-16 Shiba, Minato-ku, Tokyo 105-0014, Japan"]
[null,"(その他：直接入力）",null,"スタンダードクラブユーケーリミテッド",null,"The Standard Club UK Ltd","The minister building, 21 Mincing Lane, London, EC3R 7AG, UK"]
[null,null,null,"ザ・ユナイテッド・キングダム・ミューチュアル・スティーム・シップ・アシュアランス・アソシエーション・リミテッド",null,"THE UNITED KINGDOM MUTUAL STEAM SHIP ASSURANCE ASSOCIATION LTD.","90, Fenchurch Street, London EC3M 4ST, England"]
[null,null,null,"（その他：上書きにて直接入力して下さい。）","（直接入力：上書きにて直接入力して下さい。）","（直接入力：上書きにて直接入力して下さい。）","（直接入力：上書きにて直接入力して下さい。）"]

{"sheet":"取込シート","index":3,"n_rows":12,"n_cols":56,"rows_kept":12,"cut":false,"hidden":true,"merged":[]}
["No.","申請者氏名又は名称","申請者住所","（法人のみ）代表者の氏名","申請者郵便番号","申請者電話番号","代理人氏名又は名称","代理人住所","（法人のみ）代表者の氏名","代理人郵便番号","代理人電話番号","船舶所有者氏名又は名称","船舶所有者住所","（法人のみ）代表者の氏名","船舶所有者氏名又は名称（英文）","船舶所有者住所（英文）","船舶所有者氏名又は名称（２）","船舶所有者住所","（法人のみ）代表者の氏名","船舶所有者氏名又は名称（英文）","船舶所有者住所（英文）","船舶所有者氏名又は名称（３）","船舶所有者住所","（法人のみ）代表者の氏名","船舶所有者氏名又は名称（英文）","船舶所有者住所（英文）","船名","船名（英文）","船種","船舶番号又は信号符字","国際海事機関船舶識別番号","船籍港","船籍港（英文）","国際総トン数 (GT)","（国内）総トン数 ＜参考値＞","保障契約の種類","保障契約の種類（英文）","保障契約の始期","保障契約の終期","保障契約によりてん補される額","同単位（円=\\、米ドル=$、ユーロ=€）","保険者氏名又は名称","保険者住所","（法人のみ）代表者の氏名","保険者氏名又は名称（英文）","保険者住所（英文）","2000トン超の黒油を運搬しますか？","国際航海しますか？","自航ですか？","前回申請から変更あり？","CLC証書(2000t超黒油運搬)","ナイロビ証書(300GT以上)","バンカー証書(1000GT超)","国内ナイロビ証明書\n(外航100GT以上300GT未満)","国内バンカー証明書\n(外航100GT以上1000GT以下)","申請日"]
[0,"国土交通株式会社","東京都港区○○○○丁目○○番○○号","代表取締役社長　○○　○○","1○○-○○○○","03-○○○○-○○○○","日本船主責任相互保険組合","東京都中央区日本橋人形町二丁目15番14号","理事長　杉浦　哲","103-0013","03-3662-7213","国土交通株式会社","東京都千代田区霞が関２－１－３","代表取締役社長　○○　○○","KOKUDOKOTU K. K.","１－３,Kasumgaseki　2-chome,Chiyoda-ku,Tokyo, Japan","独立行政法人　鉄道建設・運輸施設整備支援機構","神奈川県横浜市中区本町六丁目50番1","理事長　北村　隆志","JAPAN RAILWAY CONSTRUCTION, TRANSPORT AND TECHNOLOGY AGENCY","50-1, Hon-cho 6-Chome, Naka-ku, Yokohama-shi, Kanagawa, Japan",null,null,null,null,null,"国土交通丸","KOKUDOKOTU MARU","タンカー",111111,"9999999","東京都","Tokyo",1200,null,"船主責任相互保険","P and I Insurance","2020-02-20","2021-02-20",1000000000,"$","関東運輸保険株式会社","神奈川県横浜市中区北仲通5-57　","理事長　杉浦　哲","Kanto Unyu　Insurance　Co,.Ltd","5-57, Kitanaka-do-ri,Naka-ku,Kanagawa Japan","YES","YES","YES","NO","○","○","○","-","-",{"$f":"入力シート!D56","v":"00:00:00"}]
[1,{"$f":"IF($AA3<>0,INDEX(入力シート!$D:$D, COLUMN(入力シート!B1)),\"\")","v":""},{"$f":"IF($AA3<>0,INDEX(入力シート!$D:$D, COLUMN(入力シート!C1)),\"\")","v":""},{"$f":"IF($AA3<>0,INDEX(入力シート!$D:$D, COLUMN(入力シート!D1)),\"\")","v":""},{"$f":"IF($AA3<>0,INDEX(入力シート!$D:$D, COLUMN(入力シート!E1)),\"\")","v":""},{"$f":"IF($AA3<>0,INDEX(入力シート!$D:$D, COLUMN(入力シート!F1)),\"\")","v":""},{"$f":"IF($AA3<>0,INDEX(入力シート!$D:$D, COLUMN(入力シート!G1)),\"\")","v":""},{"$f":"IF($AA3<>0,INDEX(入力シート!$D:$D, COLUMN(入力シート!H1)),\"\")","v":""},{"$f":"IF($AA3<>0,INDEX(入力シート!$D:$D, COLUMN(入力シート!I1)),\"\")","v":""},{"$f":"IF($AA3<>0,INDEX(入力シート!$D:$D, COLUMN(入力シート!J1)),\"\")","v":""},{"$f":"IF($AA3<>0,INDEX(入力シート!$D:$D, COLUMN(入力シート!K1)),\"\")","v":""},{"$f":"IF($AA3<>0,INDEX(入力シート!$D:$D, COLUMN(入力シート!L1)),\"\")","v":""},{"$f":"IF($AA3<>0,INDEX(入力シート!$D:$D, COLUMN(入力シート!M1)),\"\")","v":""},{"$f":"IF($AA3<>0,INDEX(入力シート!$D:$D, COLUMN(入力シート!N1)),\"\")","v":""},{"$f":"IF($AA3<>0,INDEX(入力シート!$D:$D, COLUMN(入力シート!O1)),\"\")","v":""},{"$f":"IF($AA3<>0,INDEX(入力シート!$D:$D, COLUMN(入力シート!P1)),\"\")","v":""},{"$f":"IF($AA3<>0,INDEX(入力シート!$D:$D, COLUMN(入力シート!Q1)),\"\")","v":""},{"$f":"IF($AA3<>0,INDEX(入力シート!$D:$D, COLUMN(入力シート!R1)),\"\")","v":""},{"$f":"IF($AA3<>0,INDEX(入力シート!$D:$D, COLUMN(入力シート!S1)),\"\")","v":""},{"$f":"IF($AA3<>0,INDEX(入力シート!$D:$D, COLUMN(入力シート!T1)),\"\")","v":""},{"$f":"IF($AA3<>0,INDEX(入力シート!$D:$D, COLUMN(入力シート!U1)),\"\")","v":""},{"$f":"IF($AA3<>0,INDEX(入力シート!$D:$D, COLUMN(入力シート!V1)),\"\")","v":""},{"$f":"IF($AA3<>0,INDEX(入力シート!$D:$D, COLUMN(入力シート!W1)),\"\")","v":""},{"$f":"IF($AA3<>0,INDEX(入力シート!$D:$D, COLUMN(入力シート!X1)),\"\")","v":""},{"$f":"IF($AA3<>0,INDEX(入力シート!$D:$D, COLUMN(入力シート!Y1)),\"\")","v":""},{"$f":"IF($AA3<>0,INDEX(入力シート!$D:$D, COLUMN(入力シート!Z1)),\"\")","v":""},{"$f":"INDEX(入力シート!$D:$D, COLUMN(入力シート!AA1))","v":0},{"$f":"IF($AA3<>0,INDEX(入力シート!$D:$D, COLUMN(入力シート!AB$1)),\"\")","v":""},{"$f":"IF($AA3<>0,INDEX(入力シート!$D:$D, COLUMN(入力シート!AC$1)),\"\")","v":""},{"$f":"IF($AA3<>0,INDEX(入力シート!$D:$D, COLUMN(入力シート!AD1)),\"\")","v":""},{"$f":"IF($AA3<>0,IFERROR(INDEX(入力シート!$D:$D, COLUMN(入力シート!AE$1))*1,0),\"\")","v":""},{"$f":"IF($AA3<>0,INDEX(入力シート!$D:$D, COLUMN(入力シート!AF1)),\"\")","v":""},{"$f":"IF($AA3<>0,INDEX(入力シート!$D:$D, COLUMN(入力シート!AG1)),\"\")","v":""},{"$f":"IF($AA3<>0,INDEX(入力シート!$D:$D, COLUMN(入力シート!AH1)),\"\")","v":""},{"$f":"IF($AA3<>0,INDEX(入力シート!$D:$D, COLUMN(入力シート!AI1)),\"\")","v":""},{"$f":"IF($AA3<>0,INDEX(入力シート!$D:$D, COLUMN(入力シート!AJ1)),\"\")","v":""},{"$f":"IF($AA3<>0,INDEX(入力シート!$D:$D, COLUMN(入力シート!AK1)),\"\")","v":""},{"$f":"IF($AA3<>0,INDEX(入力シート!$D:$D, COLUMN(入力シート!AL$1)),\"\")","v":""},{"$f":"IF($AA3<>0,INDEX(入力シート!$D:$D, COLUMN(入力シート!AM$1)),\"\")","v":""},{"$f":"IF($AA3<>0,INDEX(入力シート!$D:$D, COLUMN(入力シート!AN1)),\"\")","v":""},{"$f":"IF($AA3<>0,INDEX(入力シート!$D:$D, COLUMN(入力シート!AO1)),\"\")","v":""},{"$f":"IF($AA3<>0,INDEX(入力シート!$D:$D, COLUMN(入力シート!AP1)),\"\")","v":""},{"$f":"IF($AA3<>0,INDEX(入力シート!$D:$D, COLUMN(入力シート!AQ1)),\"\")","v":""},{"$f":"IF($AA3<>0,INDEX(入力シート!$D:$D, COLUMN(入力シート!AR1)),\"\")","v":""},{"$f":"IF($AA3<>0,INDEX(入力シート!$D:$D, COLUMN(入力シート!AS1)),\"\")","v":""},{"$f":"IF($AA3<>0,INDEX(入力シート!$D:$D, COLUMN(入力シート!AT1)),\"\")","v":""},{"$f":"IF($AA3<>0,INDEX(入力シート!$D:$D, COLUMN(入力シート!AU1)),\"\")","v":""},{"$f":"IF($AA3<>0,INDEX(入力シート!$D:$D, COLUMN(入力シート!AV1)),\"\")","v":""},{"$f":"IF($AA3<>0,INDEX(入力シート!$D:$D, COLUMN(入力シート!AW1)),\"\")","v":""},{"$f":"IF($AA3<>0,INDEX(入力シート!$D:$D, COLUMN(入力シート!AX1)),\"\")","v":""},{"$f":"IF($AA3<>0,INDEX(入力シート!$D:$D, COLUMN(入力シート!AY1)),\"\")","v":""},{"$f":"IF($AA3<>0,INDEX(入力シート!$D:$D, COLUMN(入力シート!AZ1)),\"\")","v":""},{"$f":"IF($AA3<>0,INDEX(入力シート!$D:$D, COLUMN(入力シート!BA1)),\"\")","v":""},{"$f":"IF($AA3<>0,INDEX(入力シート!$D:$D, COLUMN(入力シート!BB1)),\"\")","v":""},{"$f":"IF($AA3<>0,INDEX(入力シート!$D:$D, COLUMN(入力シート!BC1)),\"\")","v":""}]
[2,{"$f":"IF($AA4<>0,INDEX(入力シート!$E:$E, COLUMN(入力シート!B$1)),\"\")","v":""},{"$f":"IF($AA4<>0,INDEX(入力シート!$E:$E, COLUMN(入力シート!C$1)),\"\")","v":""},{"$f":"IF($AA4<>0,INDEX(入力シート!$E:$E, COLUMN(入力シート!D$1)),\"\")","v":""},{"$f":"IF($AA4<>0,INDEX(入力シート!$E:$E, COLUMN(入力シート!E$1)),\"\")","v":""},{"$f":"IF($AA4<>0,INDEX(入力シート!$E:$E, COLUMN(入力シート!F$1)),\"\")","v":""},{"$f":"IF($AA4<>0,INDEX(入力シート!$E:$E, COLUMN(入力シート!G$1)),\"\")","v":""},{"$f":"IF($AA4<>0,INDEX(入力シート!$E:$E, COLUMN(入力シート!H$1)),\"\")","v":""},{"$f":"IF($AA4<>0,INDEX(入力シート!$E:$E, COLUMN(入力シート!I$1)),\"\")","v":""},{"$f":"IF($AA4<>0,INDEX(入力シート!$E:$E, COLUMN(入力シート!J$1)),\"\")","v":""},{"$f":"IF($AA4<>0,INDEX(入力シート!$E:$E, COLUMN(入力シート!K$1)),\"\")","v":""},{"$f":"IF($AA4<>0,INDEX(入力シート!$E:$E, COLUMN(入力シート!L$1)),\"\")","v":""},{"$f":"IF($AA4<>0,INDEX(入力シート!$E:$E, COLUMN(入力シート!M$1)),\"\")","v":""},{"$f":"IF($AA4<>0,INDEX(入力シート!$E:$E, COLUMN(入力シート!N$1)),\"\")","v":""},{"$f":"IF($AA4<>0,INDEX(入力シート!$E:$E, COLUMN(入力シート!O$1)),\"\")","v":""},{"$f":"IF($AA4<>0,INDEX(入力シート!$E:$E, COLUMN(入力シート!P$1)),\"\")","v":""},{"$f":"IF($AA4<>0,INDEX(入力シート!$E:$E, COLUMN(入力シート!Q$1)),\"\")","v":""},{"$f":"IF($AA4<>0,INDEX(入力シート!$E:$E, COLUMN(入力シート!R$1)),\"\")","v":""},{"$f":"IF($AA4<>0,INDEX(入力シート!$E:$E, COLUMN(入力シート!S$1)),\"\")","v":""},{"$f":"IF($AA4<>0,INDEX(入力シート!$E:$E, COLUMN(入力シート!T$1)),\"\")","v":""},{"$f":"IF($AA4<>0,INDEX(入力シート!$E:$E, COLUMN(入力シート!U$1)),\"\")","v":""},{"$f":"IF($AA4<>0,INDEX(入力シート!$E:$E, COLUMN(入力シート!V$1)),\"\")","v":""},{"$f":"IF($AA4<>0,INDEX(入力シート!$E:$E, COLUMN(入力シート!W$1)),\"\")","v":""},{"$f":"IF($AA4<>0,INDEX(入力シート!$E:$E, COLUMN(入力シート!X$1)),\"\")","v":""},{"$f":"IF($AA4<>0,INDEX(入力シート!$E:$E, COLUMN(入力シート!Y$1)),\"\")","v":""},{"$f":"IF($AA4<>0,INDEX(入力シート!$E:$E, COLUMN(入力シート!Z$1)),\"\")","v":""},{"$f":"INDEX(入力シート!$E:$E, COLUMN(入力シート!AA$1))","v":0},{"$f":"IF($AA4<>0,INDEX(入力シート!$E:$E, COLUMN(入力シート!AB$1)),\"\")","v":""},{"$f":"IF($AA4<>0,INDEX(入力シート!$E:$E, COLUMN(入力シート!AC$1)),\"\")","v":""},{"$f":"IF($AA4<>0,INDEX(入力シート!$E:$E, COLUMN(入力シート!AD$1)),\"\")","v":""},{"$f":"IF($AA4<>0,IFERROR(INDEX(入力シート!$E:$E, COLUMN(入力シート!AE$1))*1,0),\"\")","v":""},{"$f":"IF($AA4<>0,INDEX(入力シート!$E:$E, COLUMN(入力シート!AF$1)),\"\")","v":""},{"$f":"IF($AA4<>0,INDEX(入力シート!$E:$E, COLUMN(入力シート!AG$1)),\"\")","v":""},{"$f":"IF($AA4<>0,INDEX(入力シート!$E:$E, COLUMN(入力シート!AH$1)),\"\")","v":""},{"$f":"IF($AA4<>0,INDEX(入力シート!$E:$E, COLUMN(入力シート!AI$1)),\"\")","v":""},{"$f":"IF($AA4<>0,INDEX(入力シート!$E:$E, COLUMN(入力シート!AJ$1)),\"\")","v":""},{"$f":"IF($AA4<>0,INDEX(入力シート!$E:$E, COLUMN(入力シート!AK$1)),\"\")","v":""},{"$f":"IF($AA4<>0,INDEX(入力シート!$E:$E, COLUMN(入力シート!AL$1)),\"\")","v":""},{"$f":"IF($AA4<>0,INDEX(入力シート!$E:$E, COLUMN(入力シート!AM$1)),\"\")","v":""},{"$f":"IF($AA4<>0,INDEX(入力シート!$E:$E, COLUMN(入力シート!AN$1)),\"\")","v":""},{"$f":"IF($AA4<>0,INDEX(入力シート!$E:$E, COLUMN(入力シート!AO$1)),\"\")","v":""},{"$f":"IF($AA4<>0,INDEX(入力シート!$E:$E, COLUMN(入力シート!AP$1)),\"\")","v":""},{"$f":"IF($AA4<>0,INDEX(入力シート!$E:$E, COLUMN(入力シート!AQ$1)),\"\")","v":""},{"$f":"IF($AA4<>0,INDEX(入力シート!$E:$E, COLUMN(入力シート!AR$1)),\"\")","v":""},{"$f":"IF($AA4<>0,INDEX(入力シート!$E:$E, COLUMN(入力シート!AS$1)),\"\")","v":""},{"$f":"IF($AA4<>0,INDEX(入力シート!$E:$E, COLUMN(入力シート!AT$1)),\"\")","v":""},{"$f":"IF($AA4<>0,INDEX(入力シート!$E:$E, COLUMN(入力シート!AU$1)),\"\")","v":""},{"$f":"IF($AA4<>0,INDEX(入力シート!$E:$E, COLUMN(入力シート!AV$1)),\"\")","v":""},{"$f":"IF($AA4<>0,INDEX(入力シート!$E:$E, COLUMN(入力シート!AW$1)),\"\")","v":""},{"$f":"IF($AA4<>0,INDEX(入力シート!$E:$E, COLUMN(入力シート!AX$1)),\"\")","v":""},{"$f":"IF($AA4<>0,INDEX(入力シート!$E:$E, COLUMN(入力シート!AY$1)),\"\")","v":""},{"$f":"IF($AA4<>0,INDEX(入力シート!$E:$E, COLUMN(入力シート!AZ$1)),\"\")","v":""},{"$f":"IF($AA4<>0,INDEX(入力シート!$E:$E, COLUMN(入力シート!BA$1)),\"\")","v":""},{"$f":"IF($AA4<>0,INDEX(入力シート!$E:$E, COLUMN(入力シート!BB$1)),\"\")","v":""},{"$f":"IF($AA4<>0,INDEX(入力シート!$E:$E, COLUMN(入力シート!BC$1)),\"\")","v":""}]
[3,{"$f":"IF($AA5<>0,INDEX(入力シート!$F:$F, COLUMN(入力シート!B$1)),\"\")","v":""},{"$f":"IF($AA5<>0,INDEX(入力シート!$F:$F, COLUMN(入力シート!C$1)),\"\")","v":""},{"$f":"IF($AA5<>0,INDEX(入力シート!$F:$F, COLUMN(入力シート!D$1)),\"\")","v":""},{"$f":"IF($AA5<>0,INDEX(入力シート!$F:$F, COLUMN(入力シート!E$1)),\"\")","v":""},{"$f":"IF($AA5<>0,INDEX(入力シート!$F:$F, COLUMN(入力シート!F$1)),\"\")","v":""},{"$f":"IF($AA5<>0,INDEX(入力シート!$F:$F, COLUMN(入力シート!G$1)),\"\")","v":""},{"$f":"IF($AA5<>0,INDEX(入力シート!$F:$F, COLUMN(入力シート!H$1)),\"\")","v":""},{"$f":"IF($AA5<>0,INDEX(入力シート!$F:$F, COLUMN(入力シート!I$1)),\"\")","v":""},{"$f":"IF($AA5<>0,INDEX(入力シート!$F:$F, COLUMN(入力シート!J$1)),\"\")","v":""},{"$f":"IF($AA5<>0,INDEX(入力シート!$F:$F, COLUMN(入力シート!K$1)),\"\")","v":""},{"$f":"IF($AA5<>0,INDEX(入力シート!$F:$F, COLUMN(入力シート!L$1)),\"\")","v":""},{"$f":"IF($AA5<>0,INDEX(入力シート!$F:$F, COLUMN(入力シート!M$1)),\"\")","v":""},{"$f":"IF($AA5<>0,INDEX(入力シート!$F:$F, COLUMN(入力シート!N$1)),\"\")","v":""},{"$f":"IF($AA5<>0,INDEX(入力シート!$F:$F, COLUMN(入力シート!O$1)),\"\")","v":""},{"$f":"IF($AA5<>0,INDEX(入力シート!$F:$F, COLUMN(入力シート!P$1)),\"\")","v":""},{"$f":"IF($AA5<>0,INDEX(入力シート!$F:$F, COLUMN(入力シート!Q$1)),\"\")","v":""},{"$f":"IF($AA5<>0,INDEX(入力シート!$F:$F, COLUMN(入力シート!R$1)),\"\")","v":""},{"$f":"IF($AA5<>0,INDEX(入力シート!$F:$F, COLUMN(入力シート!S$1)),\"\")","v":""},{"$f":"IF($AA5<>0,INDEX(入力シート!$F:$F, COLUMN(入力シート!T$1)),\"\")","v":""},{"$f":"IF($AA5<>0,INDEX(入力シート!$F:$F, COLUMN(入力シート!U$1)),\"\")","v":""},{"$f":"IF($AA5<>0,INDEX(入力シート!$F:$F, COLUMN(入力シート!V$1)),\"\")","v":""},{"$f":"IF($AA5<>0,INDEX(入力シート!$F:$F, COLUMN(入力シート!W$1)),\"\")","v":""},{"$f":"IF($AA5<>0,INDEX(入力シート!$F:$F, COLUMN(入力シート!X$1)),\"\")","v":""},{"$f":"IF($AA5<>0,INDEX(入力シート!$F:$F, COLUMN(入力シート!Y$1)),\"\")","v":""},{"$f":"IF($AA5<>0,INDEX(入力シート!$F:$F, COLUMN(入力シート!Z$1)),\"\")","v":""},{"$f":"INDEX(入力シート!$F:$F, COLUMN(入力シート!AA$1))","v":0},{"$f":"IF($AA5<>0,INDEX(入力シート!$F:$F, COLUMN(入力シート!AB$1)),\"\")","v":""},{"$f":"IF($AA5<>0,INDEX(入力シート!$F:$F, COLUMN(入力シート!AC$1)),\"\")","v":""},{"$f":"IF($AA5<>0,INDEX(入力シート!$F:$F, COLUMN(入力シート!AD$1)),\"\")","v":""},{"$f":"IF($AA5<>0,IFERROR(INDEX(入力シート!$F:$F, COLUMN(入力シート!AE$1))*1,0),\"\")","v":""},{"$f":"IF($AA5<>0,INDEX(入力シート!$F:$F, COLUMN(入力シート!AF$1)),\"\")","v":""},{"$f":"IF($AA5<>0,INDEX(入力シート!$F:$F, COLUMN(入力シート!AG$1)),\"\")","v":""},{"$f":"IF($AA5<>0,INDEX(入力シート!$F:$F, COLUMN(入力シート!AH$1)),\"\")","v":""},{"$f":"IF($AA5<>0,INDEX(入力シート!$F:$F, COLUMN(入力シート!AI$1)),\"\")","v":""},{"$f":"IF($AA5<>0,INDEX(入力シート!$F:$F, COLUMN(入力シート!AJ$1)),\"\")","v":""},{"$f":"IF($AA5<>0,INDEX(入力シート!$F:$F, COLUMN(入力シート!AK$1)),\"\")","v":""},{"$f":"IF($AA5<>0,INDEX(入力シート!$F:$F, COLUMN(入力シート!AL$1)),\"\")","v":""},{"$f":"IF($AA5<>0,INDEX(入力シート!$F:$F, COLUMN(入力シート!AM$1)),\"\")","v":""},{"$f":"IF($AA5<>0,INDEX(入力シート!$F:$F, COLUMN(入力シート!AN$1)),\"\")","v":""},{"$f":"IF($AA5<>0,INDEX(入力シート!$F:$F, COLUMN(入力シート!AO$1)),\"\")","v":""},{"$f":"IF($AA5<>0,INDEX(入力シート!$F:$F, COLUMN(入力シート!AP$1)),\"\")","v":""},{"$f":"IF($AA5<>0,INDEX(入力シート!$F:$F, COLUMN(入力シート!AQ$1)),\"\")","v":""},{"$f":"IF($AA5<>0,INDEX(入力シート!$F:$F, COLUMN(入力シート!AR$1)),\"\")","v":""},{"$f":"IF($AA5<>0,INDEX(入力シート!$F:$F, COLUMN(入力シート!AS$1)),\"\")","v":""},{"$f":"IF($AA5<>0,INDEX(入力シート!$F:$F, COLUMN(入力シート!AT$1)),\"\")","v":""},{"$f":"IF($AA5<>0,INDEX(入力シート!$F:$F, COLUMN(入力シート!AU$1)),\"\")","v":""},{"$f":"IF($AA5<>0,INDEX(入力シート!$F:$F, COLUMN(入力シート!AV$1)),\"\")","v":""},{"$f":"IF($AA5<>0,INDEX(入力シート!$F:$F, COLUMN(入力シート!AW$1)),\"\")","v":""},{"$f":"IF($AA5<>0,INDEX(入力シート!$F:$F, COLUMN(入力シート!AX$1)),\"\")","v":""},{"$f":"IF($AA5<>0,INDEX(入力シート!$F:$F, COLUMN(入力シート!AY$1)),\"\")","v":""},{"$f":"IF($AA5<>0,INDEX(入力シート!$F:$F, COLUMN(入力シート!AZ$1)),\"\")","v":""},{"$f":"IF($AA5<>0,INDEX(入力シート!$F:$F, COLUMN(入力シート!BA$1)),\"\")","v":""},{"$f":"IF($AA5<>0,INDEX(入力シート!$F:$F, COLUMN(入力シート!BB$1)),\"\")","v":""},{"$f":"IF($AA5<>0,INDEX(入力シート!$F:$F, COLUMN(入力シート!BC$1)),\"\")","v":""}]
[4,{"$f":"IF($AA6<>0,INDEX(入力シート!$G:$G, COLUMN(入力シート!B$1)),\"\")","v":""},{"$f":"IF($AA6<>0,INDEX(入力シート!$G:$G, COLUMN(入力シート!C$1)),\"\")","v":""},{"$f":"IF($AA6<>0,INDEX(入力シート!$G:$G, COLUMN(入力シート!D$1)),\"\")","v":""},{"$f":"IF($AA6<>0,INDEX(入力シート!$G:$G, COLUMN(入力シート!E$1)),\"\")","v":""},{"$f":"IF($AA6<>0,INDEX(入力シート!$G:$G, COLUMN(入力シート!F$1)),\"\")","v":""},{"$f":"IF($AA6<>0,INDEX(入力シート!$G:$G, COLUMN(入力シート!G$1)),\"\")","v":""},{"$f":"IF($AA6<>0,INDEX(入力シート!$G:$G, COLUMN(入力シート!H$1)),\"\")","v":""},{"$f":"IF($AA6<>0,INDEX(入力シート!$G:$G, COLUMN(入力シート!I$1)),\"\")","v":""},{"$f":"IF($AA6<>0,INDEX(入力シート!$G:$G, COLUMN(入力シート!J$1)),\"\")","v":""},{"$f":"IF($AA6<>0,INDEX(入力シート!$G:$G, COLUMN(入力シート!K$1)),\"\")","v":""},{"$f":"IF($AA6<>0,INDEX(入力シート!$G:$G, COLUMN(入力シート!L$1)),\"\")","v":""},{"$f":"IF($AA6<>0,INDEX(入力シート!$G:$G, COLUMN(入力シート!M$1)),\"\")","v":""},{"$f":"IF($AA6<>0,INDEX(入力シート!$G:$G, COLUMN(入力シート!N$1)),\"\")","v":""},{"$f":"IF($AA6<>0,INDEX(入力シート!$G:$G, COLUMN(入力シート!O$1)),\"\")","v":""},{"$f":"IF($AA6<>0,INDEX(入力シート!$G:$G, COLUMN(入力シート!P$1)),\"\")","v":""},{"$f":"IF($AA6<>0,INDEX(入力シート!$G:$G, COLUMN(入力シート!Q$1)),\"\")","v":""},{"$f":"IF($AA6<>0,INDEX(入力シート!$G:$G, COLUMN(入力シート!R$1)),\"\")","v":""},{"$f":"IF($AA6<>0,INDEX(入力シート!$G:$G, COLUMN(入力シート!S$1)),\"\")","v":""},{"$f":"IF($AA6<>0,INDEX(入力シート!$G:$G, COLUMN(入力シート!T$1)),\"\")","v":""},{"$f":"IF($AA6<>0,INDEX(入力シート!$G:$G, COLUMN(入力シート!U$1)),\"\")","v":""},{"$f":"IF($AA6<>0,INDEX(入力シート!$G:$G, COLUMN(入力シート!V$1)),\"\")","v":""},{"$f":"IF($AA6<>0,INDEX(入力シート!$G:$G, COLUMN(入力シート!W$1)),\"\")","v":""},{"$f":"IF($AA6<>0,INDEX(入力シート!$G:$G, COLUMN(入力シート!X$1)),\"\")","v":""},{"$f":"IF($AA6<>0,INDEX(入力シート!$G:$G, COLUMN(入力シート!Y$1)),\"\")","v":""},{"$f":"IF($AA6<>0,INDEX(入力シート!$G:$G, COLUMN(入力シート!Z$1)),\"\")","v":""},{"$f":"INDEX(入力シート!$G:$G, COLUMN(入力シート!AA$1))","v":0},{"$f":"IF($AA6<>0,INDEX(入力シート!$G:$G, COLUMN(入力シート!AB$1)),\"\")","v":""},{"$f":"IF($AA6<>0,INDEX(入力シート!$G:$G, COLUMN(入力シート!AC$1)),\"\")","v":""},{"$f":"IF($AA6<>0,INDEX(入力シート!$G:$G, COLUMN(入力シート!AD$1)),\"\")","v":""},{"$f":"IF($AA6<>0,IFERROR(INDEX(入力シート!$G:$G, COLUMN(入力シート!AE$1))*1,0),\"\")","v":""},{"$f":"IF($AA6<>0,INDEX(入力シート!$G:$G, COLUMN(入力シート!AF$1)),\"\")","v":""},{"$f":"IF($AA6<>0,INDEX(入力シート!$G:$G, COLUMN(入力シート!AG$1)),\"\")","v":""},{"$f":"IF($AA6<>0,INDEX(入力シート!$G:$G, COLUMN(入力シート!AH$1)),\"\")","v":""},{"$f":"IF($AA6<>0,INDEX(入力シート!$G:$G, COLUMN(入力シート!AI$1)),\"\")","v":""},{"$f":"IF($AA6<>0,INDEX(入力シート!$G:$G, COLUMN(入力シート!AJ$1)),\"\")","v":""},{"$f":"IF($AA6<>0,INDEX(入力シート!$G:$G, COLUMN(入力シート!AK$1)),\"\")","v":""},{"$f":"IF($AA6<>0,INDEX(入力シート!$G:$G, COLUMN(入力シート!AL$1)),\"\")","v":""},{"$f":"IF($AA6<>0,INDEX(入力シート!$G:$G, COLUMN(入力シート!AM$1)),\"\")","v":""},{"$f":"IF($AA6<>0,INDEX(入力シート!$G:$G, COLUMN(入力シート!AN$1)),\"\")","v":""},{"$f":"IF($AA6<>0,INDEX(入力シート!$G:$G, COLUMN(入力シート!AO$1)),\"\")","v":""},{"$f":"IF($AA6<>0,INDEX(入力シート!$G:$G, COLUMN(入力シート!AP$1)),\"\")","v":""},{"$f":"IF($AA6<>0,INDEX(入力シート!$G:$G, COLUMN(入力シート!AQ$1)),\"\")","v":""},{"$f":"IF($AA6<>0,INDEX(入力シート!$G:$G, COLUMN(入力シート!AR$1)),\"\")","v":""},{"$f":"IF($AA6<>0,INDEX(入力シート!$G:$G, COLUMN(入力シート!AS$1)),\"\")","v":""},{"$f":"IF($AA6<>0,INDEX(入力シート!$G:$G, COLUMN(入力シート!AT$1)),\"\")","v":""},{"$f":"IF($AA6<>0,INDEX(入力シート!$G:$G, COLUMN(入力シート!AU$1)),\"\")","v":""},{"$f":"IF($AA6<>0,INDEX(入力シート!$G:$G, COLUMN(入力シート!AV$1)),\"\")","v":""},{"$f":"IF($AA6<>0,INDEX(入力シート!$G:$G, COLUMN(入力シート!AW$1)),\"\")","v":""},{"$f":"IF($AA6<>0,INDEX(入力シート!$G:$G, COLUMN(入力シート!AX$1)),\"\")","v":""},{"$f":"IF($AA6<>0,INDEX(入力シート!$G:$G, COLUMN(入力シート!AY$1)),\"\")","v":""},{"$f":"IF($AA6<>0,INDEX(入力シート!$G:$G, COLUMN(入力シート!AZ$1)),\"\")","v":""},{"$f":"IF($AA6<>0,INDEX(入力シート!$G:$G, COLUMN(入力シート!BA$1)),\"\")","v":""},{"$f":"IF($AA6<>0,INDEX(入力シート!$G:$G, COLUMN(入力シート!BB$1)),\"\")","v":""},{"$f":"IF($AA6<>0,INDEX(入力シート!$G:$G, COLUMN(入力シート!BC$1)),\"\")","v":""}]
[5,{"$f":"IF($AA7<>0,INDEX(入力シート!$H:$H, COLUMN(入力シート!B$1)),\"\")","v":""},{"$f":"IF($AA7<>0,INDEX(入力シート!$H:$H, COLUMN(入力シート!C$1)),\"\")","v":""},{"$f":"IF($AA7<>0,INDEX(入力シート!$H:$H, COLUMN(入力シート!D$1)),\"\")","v":""},{"$f":"IF($AA7<>0,INDEX(入力シート!$H:$H, COLUMN(入力シート!E$1)),\"\")","v":""},{"$f":"IF($AA7<>0,INDEX(入力シート!$H:$H, COLUMN(入力シート!F$1)),\"\")","v":""},{"$f":"IF($AA7<>0,INDEX(入力シート!$H:$H, COLUMN(入力シート!G$1)),\"\")","v":""},{"$f":"IF($AA7<>0,INDEX(入力シート!$H:$H, COLUMN(入力シート!H$1)),\"\")","v":""},{"$f":"IF($AA7<>0,INDEX(入力シート!$H:$H, COLUMN(入力シート!I$1)),\"\")","v":""},{"$f":"IF($AA7<>0,INDEX(入力シート!$H:$H, COLUMN(入力シート!J$1)),\"\")","v":""},{"$f":"IF($AA7<>0,INDEX(入力シート!$H:$H, COLUMN(入力シート!K$1)),\"\")","v":""},{"$f":"IF($AA7<>0,INDEX(入力シート!$H:$H, COLUMN(入力シート!L$1)),\"\")","v":""},{"$f":"IF($AA7<>0,INDEX(入力シート!$H:$H, COLUMN(入力シート!M$1)),\"\")","v":""},{"$f":"IF($AA7<>0,INDEX(入力シート!$H:$H, COLUMN(入力シート!N$1)),\"\")","v":""},{"$f":"IF($AA7<>0,INDEX(入力シート!$H:$H, COLUMN(入力シート!O$1)),\"\")","v":""},{"$f":"IF($AA7<>0,INDEX(入力シート!$H:$H, COLUMN(入力シート!P$1)),\"\")","v":""},{"$f":"IF($AA7<>0,INDEX(入力シート!$H:$H, COLUMN(入力シート!Q$1)),\"\")","v":""},{"$f":"IF($AA7<>0,INDEX(入力シート!$H:$H, COLUMN(入力シート!R$1)),\"\")","v":""},{"$f":"IF($AA7<>0,INDEX(入力シート!$H:$H, COLUMN(入力シート!S$1)),\"\")","v":""},{"$f":"IF($AA7<>0,INDEX(入力シート!$H:$H, COLUMN(入力シート!T$1)),\"\")","v":""},{"$f":"IF($AA7<>0,INDEX(入力シート!$H:$H, COLUMN(入力シート!U$1)),\"\")","v":""},{"$f":"IF($AA7<>0,INDEX(入力シート!$H:$H, COLUMN(入力シート!V$1)),\"\")","v":""},{"$f":"IF($AA7<>0,INDEX(入力シート!$H:$H, COLUMN(入力シート!W$1)),\"\")","v":""},{"$f":"IF($AA7<>0,INDEX(入力シート!$H:$H, COLUMN(入力シート!X$1)),\"\")","v":""},{"$f":"IF($AA7<>0,INDEX(入力シート!$H:$H, COLUMN(入力シート!Y$1)),\"\")","v":""},{"$f":"IF($AA7<>0,INDEX(入力シート!$H:$H, COLUMN(入力シート!Z$1)),\"\")","v":""},{"$f":"INDEX(入力シート!$H:$H, COLUMN(入力シート!AA$1))","v":0},{"$f":"IF($AA7<>0,INDEX(入力シート!$H:$H, COLUMN(入力シート!AB$1)),\"\")","v":""},{"$f":"IF($AA7<>0,INDEX(入力シート!$H:$H, COLUMN(入力シート!AC$1)),\"\")","v":""},{"$f":"IF($AA7<>0,INDEX(入力シート!$H:$H, COLUMN(入力シート!AD$1)),\"\")","v":""},{"$f":"IF($AA7<>0,IFERROR(INDEX(入力シート!$H:$H, COLUMN(入力シート!AE$1))*1,0),\"\")","v":""},{"$f":"IF($AA7<>0,INDEX(入力シート!$H:$H, COLUMN(入力シート!AF$1)),\"\")","v":""},{"$f":"IF($AA7<>0,INDEX(入力シート!$H:$H, COLUMN(入力シート!AG$1)),\"\")","v":""},{"$f":"IF($AA7<>0,INDEX(入力シート!$H:$H, COLUMN(入力シート!AH$1)),\"\")","v":""},{"$f":"IF($AA7<>0,INDEX(入力シート!$H:$H, COLUMN(入力シート!AI$1)),\"\")","v":""},{"$f":"IF($AA7<>0,INDEX(入力シート!$H:$H, COLUMN(入力シート!AJ$1)),\"\")","v":""},{"$f":"IF($AA7<>0,INDEX(入力シート!$H:$H, COLUMN(入力シート!AK$1)),\"\")","v":""},{"$f":"IF($AA7<>0,INDEX(入力シート!$H:$H, COLUMN(入力シート!AL$1)),\"\")","v":""},{"$f":"IF($AA7<>0,INDEX(入力シート!$H:$H, COLUMN(入力シート!AM$1)),\"\")","v":""},{"$f":"IF($AA7<>0,INDEX(入力シート!$H:$H, COLUMN(入力シート!AN$1)),\"\")","v":""},{"$f":"IF($AA7<>0,INDEX(入力シート!$H:$H, COLUMN(入力シート!AO$1)),\"\")","v":""},{"$f":"IF($AA7<>0,INDEX(入力シート!$H:$H, COLUMN(入力シート!AP$1)),\"\")","v":""},{"$f":"IF($AA7<>0,INDEX(入力シート!$H:$H, COLUMN(入力シート!AQ$1)),\"\")","v":""},{"$f":"IF($AA7<>0,INDEX(入力シート!$H:$H, COLUMN(入力シート!AR$1)),\"\")","v":""},{"$f":"IF($AA7<>0,INDEX(入力シート!$H:$H, COLUMN(入力シート!AS$1)),\"\")","v":""},{"$f":"IF($AA7<>0,INDEX(入力シート!$H:$H, COLUMN(入力シート!AT$1)),\"\")","v":""},{"$f":"IF($AA7<>0,INDEX(入力シート!$H:$H, COLUMN(入力シート!AU$1)),\"\")","v":""},{"$f":"IF($AA7<>0,INDEX(入力シート!$H:$H, COLUMN(入力シート!AV$1)),\"\")","v":""},{"$f":"IF($AA7<>0,INDEX(入力シート!$H:$H, COLUMN(入力シート!AW$1)),\"\")","v":""},{"$f":"IF($AA7<>0,INDEX(入力シート!$H:$H, COLUMN(入力シート!AX$1)),\"\")","v":""},{"$f":"IF($AA7<>0,INDEX(入力シート!$H:$H, COLUMN(入力シート!AY$1)),\"\")","v":""},{"$f":"IF($AA7<>0,INDEX(入力シート!$H:$H, COLUMN(入力シート!AZ$1)),\"\")","v":""},{"$f":"IF($AA7<>0,INDEX(入力シート!$H:$H, COLUMN(入力シート!BA$1)),\"\")","v":""},{"$f":"IF($AA7<>0,INDEX(入力シート!$H:$H, COLUMN(入力シート!BB$1)),\"\")","v":""},{"$f":"IF($AA7<>0,INDEX(入力シート!$H:$H, COLUMN(入力シート!BC$1)),\"\")","v":""}]
[6,{"$f":"IF($AA8<>0,INDEX(入力シート!$I:$I, COLUMN(入力シート!B$1)),\"\")","v":""},{"$f":"IF($AA8<>0,INDEX(入力シート!$I:$I, COLUMN(入力シート!C$1)),\"\")","v":""},{"$f":"IF($AA8<>0,INDEX(入力シート!$I:$I, COLUMN(入力シート!D$1)),\"\")","v":""},{"$f":"IF($AA8<>0,INDEX(入力シート!$I:$I, COLUMN(入力シート!E$1)),\"\")","v":""},{"$f":"IF($AA8<>0,INDEX(入力シート!$I:$I, COLUMN(入力シート!F$1)),\"\")","v":""},{"$f":"IF($AA8<>0,INDEX(入力シート!$I:$I, COLUMN(入力シート!G$1)),\"\")","v":""},{"$f":"IF($AA8<>0,INDEX(入力シート!$I:$I, COLUMN(入力シート!H$1)),\"\")","v":""},{"$f":"IF($AA8<>0,INDEX(入力シート!$I:$I, COLUMN(入力シート!I$1)),\"\")","v":""},{"$f":"IF($AA8<>0,INDEX(入力シート!$I:$I, COLUMN(入力シート!J$1)),\"\")","v":""},{"$f":"IF($AA8<>0,INDEX(入力シート!$I:$I, COLUMN(入力シート!K$1)),\"\")","v":""},{"$f":"IF($AA8<>0,INDEX(入力シート!$I:$I, COLUMN(入力シート!L$1)),\"\")","v":""},{"$f":"IF($AA8<>0,INDEX(入力シート!$I:$I, COLUMN(入力シート!M$1)),\"\")","v":""},{"$f":"IF($AA8<>0,INDEX(入力シート!$I:$I, COLUMN(入力シート!N$1)),\"\")","v":""},{"$f":"IF($AA8<>0,INDEX(入力シート!$I:$I, COLUMN(入力シート!O$1)),\"\")","v":""},{"$f":"IF($AA8<>0,INDEX(入力シート!$I:$I, COLUMN(入力シート!P$1)),\"\")","v":""},{"$f":"IF($AA8<>0,INDEX(入力シート!$I:$I, COLUMN(入力シート!Q$1)),\"\")","v":""},{"$f":"IF($AA8<>0,INDEX(入力シート!$I:$I, COLUMN(入力シート!R$1)),\"\")","v":""},{"$f":"IF($AA8<>0,INDEX(入力シート!$I:$I, COLUMN(入力シート!S$1)),\"\")","v":""},{"$f":"IF($AA8<>0,INDEX(入力シート!$I:$I, COLUMN(入力シート!T$1)),\"\")","v":""},{"$f":"IF($AA8<>0,INDEX(入力シート!$I:$I, COLUMN(入力シート!U$1)),\"\")","v":""},{"$f":"IF($AA8<>0,INDEX(入力シート!$I:$I, COLUMN(入力シート!V$1)),\"\")","v":""},{"$f":"IF($AA8<>0,INDEX(入力シート!$I:$I, COLUMN(入力シート!W$1)),\"\")","v":""},{"$f":"IF($AA8<>0,INDEX(入力シート!$I:$I, COLUMN(入力シート!X$1)),\"\")","v":""},{"$f":"IF($AA8<>0,INDEX(入力シート!$I:$I, COLUMN(入力シート!Y$1)),\"\")","v":""},{"$f":"IF($AA8<>0,INDEX(入力シート!$I:$I, COLUMN(入力シート!Z$1)),\"\")","v":""},{"$f":"INDEX(入力シート!$I:$I, COLUMN(入力シート!AA$1))","v":0},{"$f":"IF($AA8<>0,INDEX(入力シート!$I:$I, COLUMN(入力シート!AB$1)),\"\")","v":""},{"$f":"IF($AA8<>0,INDEX(入力シート!$I:$I, COLUMN(入力シート!AC$1)),\"\")","v":""},{"$f":"IF($AA8<>0,INDEX(入力シート!$I:$I, COLUMN(入力シート!AD$1)),\"\")","v":""},{"$f":"IF($AA8<>0,IFERROR(INDEX(入力シート!$I:$I, COLUMN(入力シート!AE$1))*1,0),\"\")","v":""},{"$f":"IF($AA8<>0,INDEX(入力シート!$I:$I, COLUMN(入力シート!AF$1)),\"\")","v":""},{"$f":"IF($AA8<>0,INDEX(入力シート!$I:$I, COLUMN(入力シート!AG$1)),\"\")","v":""},{"$f":"IF($AA8<>0,INDEX(入力シート!$I:$I, COLUMN(入力シート!AH$1)),\"\")","v":""},{"$f":"IF($AA8<>0,INDEX(入力シート!$I:$I, COLUMN(入力シート!AI$1)),\"\")","v":""},{"$f":"IF($AA8<>0,INDEX(入力シート!$I:$I, COLUMN(入力シート!AJ$1)),\"\")","v":""},{"$f":"IF($AA8<>0,INDEX(入力シート!$I:$I, COLUMN(入力シート!AK$1)),\"\")","v":""},{"$f":"IF($AA8<>0,INDEX(入力シート!$I:$I, COLUMN(入力シート!AL$1)),\"\")","v":""},{"$f":"IF($AA8<>0,INDEX(入力シート!$I:$I, COLUMN(入力シート!AM$1)),\"\")","v":""},{"$f":"IF($AA8<>0,INDEX(入力シート!$I:$I, COLUMN(入力シート!AN$1)),\"\")","v":""},{"$f":"IF($AA8<>0,INDEX(入力シート!$I:$I, COLUMN(入力シート!AO$1)),\"\")","v":""},{"$f":"IF($AA8<>0,INDEX(入力シート!$I:$I, COLUMN(入力シート!AP$1)),\"\")","v":""},{"$f":"IF($AA8<>0,INDEX(入力シート!$I:$I, COLUMN(入力シート!AQ$1)),\"\")","v":""},{"$f":"IF($AA8<>0,INDEX(入力シート!$I:$I, COLUMN(入力シート!AR$1)),\"\")","v":""},{"$f":"IF($AA8<>0,INDEX(入力シート!$I:$I, COLUMN(入力シート!AS$1)),\"\")","v":""},{"$f":"IF($AA8<>0,INDEX(入力シート!$I:$I, COLUMN(入力シート!AT$1)),\"\")","v":""},{"$f":"IF($AA8<>0,INDEX(入力シート!$I:$I, COLUMN(入力シート!AU$1)),\"\")","v":""},{"$f":"IF($AA8<>0,INDEX(入力シート!$I:$I, COLUMN(入力シート!AV$1)),\"\")","v":""},{"$f":"IF($AA8<>0,INDEX(入力シート!$I:$I, COLUMN(入力シート!AW$1)),\"\")","v":""},{"$f":"IF($AA8<>0,INDEX(入力シート!$I:$I, COLUMN(入力シート!AX$1)),\"\")","v":""},{"$f":"IF($AA8<>0,INDEX(入力シート!$I:$I, COLUMN(入力シート!AY$1)),\"\")","v":""},{"$f":"IF($AA8<>0,INDEX(入力シート!$I:$I, COLUMN(入力シート!AZ$1)),\"\")","v":""},{"$f":"IF($AA8<>0,INDEX(入力シート!$I:$I, COLUMN(入力シート!BA$1)),\"\")","v":""},{"$f":"IF($AA8<>0,INDEX(入力シート!$I:$I, COLUMN(入力シート!BB$1)),\"\")","v":""},{"$f":"IF($AA8<>0,INDEX(入力シート!$I:$I, COLUMN(入力シート!BC$1)),\"\")","v":""}]
[7,{"$f":"IF($AA9<>0,INDEX(入力シート!$J:$J, COLUMN(入力シート!B$1)),\"\")","v":""},{"$f":"IF($AA9<>0,INDEX(入力シート!$J:$J, COLUMN(入力シート!C$1)),\"\")","v":""},{"$f":"IF($AA9<>0,INDEX(入力シート!$J:$J, COLUMN(入力シート!D$1)),\"\")","v":""},{"$f":"IF($AA9<>0,INDEX(入力シート!$J:$J, COLUMN(入力シート!E$1)),\"\")","v":""},{"$f":"IF($AA9<>0,INDEX(入力シート!$J:$J, COLUMN(入力シート!F$1)),\"\")","v":""},{"$f":"IF($AA9<>0,INDEX(入力シート!$J:$J, COLUMN(入力シート!G$1)),\"\")","v":""},{"$f":"IF($AA9<>0,INDEX(入力シート!$J:$J, COLUMN(入力シート!H$1)),\"\")","v":""},{"$f":"IF($AA9<>0,INDEX(入力シート!$J:$J, COLUMN(入力シート!I$1)),\"\")","v":""},{"$f":"IF($AA9<>0,INDEX(入力シート!$J:$J, COLUMN(入力シート!J$1)),\"\")","v":""},{"$f":"IF($AA9<>0,INDEX(入力シート!$J:$J, COLUMN(入力シート!K$1)),\"\")","v":""},{"$f":"IF($AA9<>0,INDEX(入力シート!$J:$J, COLUMN(入力シート!L$1)),\"\")","v":""},{"$f":"IF($AA9<>0,INDEX(入力シート!$J:$J, COLUMN(入力シート!M$1)),\"\")","v":""},{"$f":"IF($AA9<>0,INDEX(入力シート!$J:$J, COLUMN(入力シート!N$1)),\"\")","v":""},{"$f":"IF($AA9<>0,INDEX(入力シート!$J:$J, COLUMN(入力シート!O$1)),\"\")","v":""},{"$f":"IF($AA9<>0,INDEX(入力シート!$J:$J, COLUMN(入力シート!P$1)),\"\")","v":""},{"$f":"IF($AA9<>0,INDEX(入力シート!$J:$J, COLUMN(入力シート!Q$1)),\"\")","v":""},{"$f":"IF($AA9<>0,INDEX(入力シート!$J:$J, COLUMN(入力シート!R$1)),\"\")","v":""},{"$f":"IF($AA9<>0,INDEX(入力シート!$J:$J, COLUMN(入力シート!S$1)),\"\")","v":""},{"$f":"IF($AA9<>0,INDEX(入力シート!$J:$J, COLUMN(入力シート!T$1)),\"\")","v":""},{"$f":"IF($AA9<>0,INDEX(入力シート!$J:$J, COLUMN(入力シート!U$1)),\"\")","v":""},{"$f":"IF($AA9<>0,INDEX(入力シート!$J:$J, COLUMN(入力シート!V$1)),\"\")","v":""},{"$f":"IF($AA9<>0,INDEX(入力シート!$J:$J, COLUMN(入力シート!W$1)),\"\")","v":""},{"$f":"IF($AA9<>0,INDEX(入力シート!$J:$J, COLUMN(入力シート!X$1)),\"\")","v":""},{"$f":"IF($AA9<>0,INDEX(入力シート!$J:$J, COLUMN(入力シート!Y$1)),\"\")","v":""},{"$f":"IF($AA9<>0,INDEX(入力シート!$J:$J, COLUMN(入力シート!Z$1)),\"\")","v":""},{"$f":"INDEX(入力シート!$J:$J, COLUMN(入力シート!AA$1))","v":0},{"$f":"IF($AA9<>0,INDEX(入力シート!$J:$J,COLUMN(入力シート!AB$1)),\"\")","v":""},{"$f":"IF($AA9<>0,INDEX(入力シート!$J:$J, COLUMN(入力シート!AC$1)),\"\")","v":""},{"$f":"IF($AA9<>0,INDEX(入力シート!$J:$J, COLUMN(入力シート!AD$1)),\"\")","v":""},{"$f":"IF($AA9<>0,IFERROR(INDEX(入力シート!$J:$J, COLUMN(入力シート!AE$1))*1,0),\"\")","v":""},{"$f":"IF($AA9<>0,INDEX(入力シート!$J:$J, COLUMN(入力シート!AF$1)),\"\")","v":""},{"$f":"IF($AA9<>0,INDEX(入力シート!$J:$J, COLUMN(入力シート!AG$1)),\"\")","v":""},{"$f":"IF($AA9<>0,INDEX(入力シート!$J:$J, COLUMN(入力シート!AH$1)),\"\")","v":""},{"$f":"IF($AA9<>0,INDEX(入力シート!$J:$J, COLUMN(入力シート!AI$1)),\"\")","v":""},{"$f":"IF($AA9<>0,INDEX(入力シート!$J:$J, COLUMN(入力シート!AJ$1)),\"\")","v":""},{"$f":"IF($AA9<>0,INDEX(入力シート!$J:$J, COLUMN(入力シート!AK$1)),\"\")","v":""},{"$f":"IF($AA9<>0,INDEX(入力シート!$J:$J, COLUMN(入力シート!AL$1)),\"\")","v":""},{"$f":"IF($AA9<>0,INDEX(入力シート!$J:$J, COLUMN(入力シート!AM$1)),\"\")","v":""},{"$f":"IF($AA9<>0,INDEX(入力シート!$J:$J, COLUMN(入力シート!AN$1)),\"\")","v":""},{"$f":"IF($AA9<>0,INDEX(入力シート!$J:$J, COLUMN(入力シート!AO$1)),\"\")","v":""},{"$f":"IF($AA9<>0,INDEX(入力シート!$J:$J, COLUMN(入力シート!AP$1)),\"\")","v":""},{"$f":"IF($AA9<>0,INDEX(入力シート!$J:$J, COLUMN(入力シート!AQ$1)),\"\")","v":""},{"$f":"IF($AA9<>0,INDEX(入力シート!$J:$J, COLUMN(入力シート!AR$1)),\"\")","v":""},{"$f":"IF($AA9<>0,INDEX(入力シート!$J:$J, COLUMN(入力シート!AS$1)),\"\")","v":""},{"$f":"IF($AA9<>0,INDEX(入力シート!$J:$J, COLUMN(入力シート!AT$1)),\"\")","v":""},{"$f":"IF($AA9<>0,INDEX(入力シート!$J:$J, COLUMN(入力シート!AU$1)),\"\")","v":""},{"$f":"IF($AA9<>0,INDEX(入力シート!$J:$J, COLUMN(入力シート!AV$1)),\"\")","v":""},{"$f":"IF($AA9<>0,INDEX(入力シート!$J:$J, COLUMN(入力シート!AW$1)),\"\")","v":""},{"$f":"IF($AA9<>0,INDEX(入力シート!$J:$J, COLUMN(入力シート!AX$1)),\"\")","v":""},{"$f":"IF($AA9<>0,INDEX(入力シート!$J:$J, COLUMN(入力シート!AY$1)),\"\")","v":""},{"$f":"IF($AA9<>0,INDEX(入力シート!$J:$J, COLUMN(入力シート!AZ$1)),\"\")","v":""},{"$f":"IF($AA9<>0,INDEX(入力シート!$J:$J, COLUMN(入力シート!BA$1)),\"\")","v":""},{"$f":"IF($AA9<>0,INDEX(入力シート!$J:$J, COLUMN(入力シート!BB$1)),\"\")","v":""},{"$f":"IF($AA9<>0,INDEX(入力シート!$J:$J, COLUMN(入力シート!BC$1)),\"\")","v":""}]
[8,{"$f":"IF($AA10<>0,INDEX(入力シート!$K:$K, COLUMN(入力シート!B$1)),\"\")","v":""},{"$f":"IF($AA10<>0,INDEX(入力シート!$K:$K, COLUMN(入力シート!C$1)),\"\")","v":""},{"$f":"IF($AA10<>0,INDEX(入力シート!$K:$K, COLUMN(入力シート!D$1)),\"\")","v":""},{"$f":"IF($AA10<>0,INDEX(入力シート!$K:$K, COLUMN(入力シート!E$1)),\"\")","v":""},{"$f":"IF($AA10<>0,INDEX(入力シート!$K:$K, COLUMN(入力シート!F$1)),\"\")","v":""},{"$f":"IF($AA10<>0,INDEX(入力シート!$K:$K, COLUMN(入力シート!G$1)),\"\")","v":""},{"$f":"IF($AA10<>0,INDEX(入力シート!$K:$K, COLUMN(入力シート!H$1)),\"\")","v":""},{"$f":"IF($AA10<>0,INDEX(入力シート!$K:$K, COLUMN(入力シート!I$1)),\"\")","v":""},{"$f":"IF($AA10<>0,INDEX(入力シート!$K:$K, COLUMN(入力シート!J$1)),\"\")","v":""},{"$f":"IF($AA10<>0,INDEX(入力シート!$K:$K, COLUMN(入力シート!K$1)),\"\")","v":""},{"$f":"IF($AA10<>0,INDEX(入力シート!$K:$K, COLUMN(入力シート!L$1)),\"\")","v":""},{"$f":"IF($AA10<>0,INDEX(入力シート!$K:$K, COLUMN(入力シート!M$1)),\"\")","v":""},{"$f":"IF($AA10<>0,INDEX(入力シート!$K:$K, COLUMN(入力シート!N$1)),\"\")","v":""},{"$f":"IF($AA10<>0,INDEX(入力シート!$K:$K, COLUMN(入力シート!O$1)),\"\")","v":""},{"$f":"IF($AA10<>0,INDEX(入力シート!$K:$K, COLUMN(入力シート!P$1)),\"\")","v":""},{"$f":"IF($AA10<>0,INDEX(入力シート!$K:$K, COLUMN(入力シート!Q$1)),\"\")","v":""},{"$f":"IF($AA10<>0,INDEX(入力シート!$K:$K, COLUMN(入力シート!R$1)),\"\")","v":""},{"$f":"IF($AA10<>0,INDEX(入力シート!$K:$K, COLUMN(入力シート!S$1)),\"\")","v":""},{"$f":"IF($AA10<>0,INDEX(入力シート!$K:$K, COLUMN(入力シート!T$1)),\"\")","v":""},{"$f":"IF($AA10<>0,INDEX(入力シート!$K:$K, COLUMN(入力シート!U$1)),\"\")","v":""},{"$f":"IF($AA10<>0,INDEX(入力シート!$K:$K, COLUMN(入力シート!V$1)),\"\")","v":""},{"$f":"IF($AA10<>0,INDEX(入力シート!$K:$K, COLUMN(入力シート!W$1)),\"\")","v":""},{"$f":"IF($AA10<>0,INDEX(入力シート!$K:$K, COLUMN(入力シート!X$1)),\"\")","v":""},{"$f":"IF($AA10<>0,INDEX(入力シート!$K:$K, COLUMN(入力シート!Y$1)),\"\")","v":""},{"$f":"IF($AA10<>0,INDEX(入力シート!$K:$K, COLUMN(入力シート!Z$1)),\"\")","v":""},{"$f":"INDEX(入力シート!$K:$K, COLUMN(入力シート!AA$1))","v":0},{"$f":"IF($AA10<>0,INDEX(入力シート!$K:$K, COLUMN(入力シート!AB$1)),\"\")","v":""},{"$f":"IF($AA10<>0,INDEX(入力シート!$K:$K, COLUMN(入力シート!AC$1)),\"\")","v":""},{"$f":"IF($AA10<>0,INDEX(入力シート!$K:$K, COLUMN(入力シート!AD$1)),\"\")","v":""},{"$f":"IF($AA10<>0,IFERROR(INDEX(入力シート!$K:$K, COLUMN(入力シート!AE$1))*1,0),\"\")","v":""},{"$f":"IF($AA10<>0,INDEX(入力シート!$K:$K, COLUMN(入力シート!AF$1)),\"\")","v":""},{"$f":"IF($AA10<>0,INDEX(入力シート!$K:$K, COLUMN(入力シート!AG$1)),\"\")","v":""},{"$f":"IF($AA10<>0,INDEX(入力シート!$K:$K, COLUMN(入力シート!AH$1)),\"\")","v":""},{"$f":"IF($AA10<>0,INDEX(入力シート!$K:$K, COLUMN(入力シート!AI$1)),\"\")","v":""},{"$f":"IF($AA10<>0,INDEX(入力シート!$K:$K, COLUMN(入力シート!AJ$1)),\"\")","v":""},{"$f":"IF($AA10<>0,INDEX(入力シート!$K:$K, COLUMN(入力シート!AK$1)),\"\")","v":""},{"$f":"IF($AA10<>0,INDEX(入力シート!$K:$K, COLUMN(入力シート!AL$1)),\"\")","v":""},{"$f":"IF($AA10<>0,INDEX(入力シート!$K:$K, COLUMN(入力シート!AM$1)),\"\")","v":""},{"$f":"IF($AA10<>0,INDEX(入力シート!$K:$K, COLUMN(入力シート!AN$1)),\"\")","v":""},{"$f":"IF($AA10<>0,INDEX(入力シート!$K:$K, COLUMN(入力シート!AO$1)),\"\")","v":""},{"$f":"IF($AA10<>0,INDEX(入力シート!$K:$K, COLUMN(入力シート!AP$1)),\"\")","v":""},{"$f":"IF($AA10<>0,INDEX(入力シート!$K:$K, COLUMN(入力シート!AQ$1)),\"\")","v":""},{"$f":"IF($AA10<>0,INDEX(入力シート!$K:$K, COLUMN(入力シート!AR$1)),\"\")","v":""},{"$f":"IF($AA10<>0,INDEX(入力シート!$K:$K, COLUMN(入力シート!AS$1)),\"\")","v":""},{"$f":"IF($AA10<>0,INDEX(入力シート!$K:$K, COLUMN(入力シート!AT$1)),\"\")","v":""},{"$f":"IF($AA10<>0,INDEX(入力シート!$K:$K, COLUMN(入力シート!AU$1)),\"\")","v":""},{"$f":"IF($AA10<>0,INDEX(入力シート!$K:$K, COLUMN(入力シート!AV$1)),\"\")","v":""},{"$f":"IF($AA10<>0,INDEX(入力シート!$K:$K, COLUMN(入力シート!AW$1)),\"\")","v":""},{"$f":"IF($AA10<>0,INDEX(入力シート!$K:$K, COLUMN(入力シート!AX$1)),\"\")","v":""},{"$f":"IF($AA10<>0,INDEX(入力シート!$K:$K, COLUMN(入力シート!AY$1)),\"\")","v":""},{"$f":"IF($AA10<>0,INDEX(入力シート!$K:$K, COLUMN(入力シート!AZ$1)),\"\")","v":""},{"$f":"IF($AA10<>0,INDEX(入力シート!$K:$K, COLUMN(入力シート!BA$1)),\"\")","v":""},{"$f":"IF($AA10<>0,INDEX(入力シート!$K:$K, COLUMN(入力シート!BB$1)),\"\")","v":""},{"$f":"IF($AA10<>0,INDEX(入力シート!$K:$K, COLUMN(入力シート!BC$1)),\"\")","v":""}]
[9,{"$f":"IF($AA11<>0,INDEX(入力シート!$L:$L, COLUMN(入力シート!B$1)),\"\")","v":""},{"$f":"IF($AA11<>0,INDEX(入力シート!$L:$L, COLUMN(入力シート!C$1)),\"\")","v":""},{"$f":"IF($AA11<>0,INDEX(入力シート!$L:$L, COLUMN(入力シート!D$1)),\"\")","v":""},{"$f":"IF($AA11<>0,INDEX(入力シート!$L:$L, COLUMN(入力シート!E$1)),\"\")","v":""},{"$f":"IF($AA11<>0,INDEX(入力シート!$L:$L, COLUMN(入力シート!F$1)),\"\")","v":""},{"$f":"IF($AA11<>0,INDEX(入力シート!$L:$L, COLUMN(入力シート!G$1)),\"\")","v":""},{"$f":"IF($AA11<>0,INDEX(入力シート!$L:$L, COLUMN(入力シート!H$1)),\"\")","v":""},{"$f":"IF($AA11<>0,INDEX(入力シート!$L:$L, COLUMN(入力シート!I$1)),\"\")","v":""},{"$f":"IF($AA11<>0,INDEX(入力シート!$L:$L, COLUMN(入力シート!J$1)),\"\")","v":""},{"$f":"IF($AA11<>0,INDEX(入力シート!$L:$L, COLUMN(入力シート!K$1)),\"\")","v":""},{"$f":"IF($AA11<>0,INDEX(入力シート!$L:$L, COLUMN(入力シート!L$1)),\"\")","v":""},{"$f":"IF($AA11<>0,INDEX(入力シート!$L:$L, COLUMN(入力シート!M$1)),\"\")","v":""},{"$f":"IF($AA11<>0,INDEX(入力シート!$L:$L, COLUMN(入力シート!N$1)),\"\")","v":""},{"$f":"IF($AA11<>0,INDEX(入力シート!$L:$L, COLUMN(入力シート!O$1)),\"\")","v":""},{"$f":"IF($AA11<>0,INDEX(入力シート!$L:$L, COLUMN(入力シート!P$1)),\"\")","v":""},{"$f":"IF($AA11<>0,INDEX(入力シート!$L:$L, COLUMN(入力シート!Q$1)),\"\")","v":""},{"$f":"IF($AA11<>0,INDEX(入力シート!$L:$L, COLUMN(入力シート!R$1)),\"\")","v":""},{"$f":"IF($AA11<>0,INDEX(入力シート!$L:$L, COLUMN(入力シート!S$1)),\"\")","v":""},{"$f":"IF($AA11<>0,INDEX(入力シート!$L:$L, COLUMN(入力シート!T$1)),\"\")","v":""},{"$f":"IF($AA11<>0,INDEX(入力シート!$L:$L, COLUMN(入力シート!U$1)),\"\")","v":""},{"$f":"IF($AA11<>0,INDEX(入力シート!$L:$L, COLUMN(入力シート!V$1)),\"\")","v":""},{"$f":"IF($AA11<>0,INDEX(入力シート!$L:$L, COLUMN(入力シート!W$1)),\"\")","v":""},{"$f":"IF($AA11<>0,INDEX(入力シート!$L:$L, COLUMN(入力シート!X$1)),\"\")","v":""},{"$f":"IF($AA11<>0,INDEX(入力シート!$L:$L, COLUMN(入力シート!Y$1)),\"\")","v":""},{"$f":"IF($AA11<>0,INDEX(入力シート!$L:$L, COLUMN(入力シート!Z$1)),\"\")","v":""},{"$f":"INDEX(入力シート!$L:$L, COLUMN(入力シート!AA$1))","v":0},{"$f":"IF($AA11<>0,INDEX(入力シート!$L:$L, COLUMN(入力シート!AB$1)),\"\")","v":""},{"$f":"IF($AA11<>0,INDEX(入力シート!$L:$L, COLUMN(入力シート!AC$1)),\"\")","v":""},{"$f":"IF($AA11<>0,INDEX(入力シート!$L:$L, COLUMN(入力シート!AD$1)),\"\")","v":""},{"$f":"IF($AA11<>0,IFERROR(INDEX(入力シート!$L:$L, COLUMN(入力シート!AE$1))*1,0),\"\")","v":""},{"$f":"IF($AA11<>0,INDEX(入力シート!$L:$L, COLUMN(入力シート!AF$1)),\"\")","v":""},{"$f":"IF($AA11<>0,INDEX(入力シート!$L:$L, COLUMN(入力シート!AG$1)),\"\")","v":""},{"$f":"IF($AA11<>0,INDEX(入力シート!$L:$L, COLUMN(入力シート!AH$1)),\"\")","v":""},{"$f":"IF($AA11<>0,INDEX(入力シート!$L:$L, COLUMN(入力シート!AI$1)),\"\")","v":""},{"$f":"IF($AA11<>0,INDEX(入力シート!$L:$L, COLUMN(入力シート!AJ$1)),\"\")","v":""},{"$f":"IF($AA11<>0,INDEX(入力シート!$L:$L, COLUMN(入力シート!AK$1)),\"\")","v":""},{"$f":"IF($AA11<>0,INDEX(入力シート!$L:$L, COLUMN(入力シート!AL$1)),\"\")","v":""},{"$f":"IF($AA11<>0,INDEX(入力シート!$L:$L, COLUMN(入力シート!AM$1)),\"\")","v":""},{"$f":"IF($AA11<>0,INDEX(入力シート!$L:$L, COLUMN(入力シート!AN$1)),\"\")","v":""},{"$f":"IF($AA11<>0,INDEX(入力シート!$L:$L, COLUMN(入力シート!AO$1)),\"\")","v":""},{"$f":"IF($AA11<>0,INDEX(入力シート!$L:$L, COLUMN(入力シート!AP$1)),\"\")","v":""},{"$f":"IF($AA11<>0,INDEX(入力シート!$L:$L, COLUMN(入力シート!AQ$1)),\"\")","v":""},{"$f":"IF($AA11<>0,INDEX(入力シート!$L:$L, COLUMN(入力シート!AR$1)),\"\")","v":""},{"$f":"IF($AA11<>0,INDEX(入力シート!$L:$L, COLUMN(入力シート!AS$1)),\"\")","v":""},{"$f":"IF($AA11<>0,INDEX(入力シート!$L:$L, COLUMN(入力シート!AT$1)),\"\")","v":""},{"$f":"IF($AA11<>0,INDEX(入力シート!$L:$L, COLUMN(入力シート!AU$1)),\"\")","v":""},{"$f":"IF($AA11<>0,INDEX(入力シート!$L:$L, COLUMN(入力シート!AV$1)),\"\")","v":""},{"$f":"IF($AA11<>0,INDEX(入力シート!$L:$L, COLUMN(入力シート!AW$1)),\"\")","v":""},{"$f":"IF($AA11<>0,INDEX(入力シート!$L:$L, COLUMN(入力シート!AX$1)),\"\")","v":""},{"$f":"IF($AA11<>0,INDEX(入力シート!$L:$L, COLUMN(入力シート!AY$1)),\"\")","v":""},{"$f":"IF($AA11<>0,INDEX(入力シート!$L:$L, COLUMN(入力シート!AZ$1)),\"\")","v":""},{"$f":"IF($AA11<>0,INDEX(入力シート!$L:$L, COLUMN(入力シート!BA$1)),\"\")","v":""},{"$f":"IF($AA11<>0,INDEX(入力シート!$L:$L, COLUMN(入力シート!BB$1)),\"\")","v":""},{"$f":"IF($AA11<>0,INDEX(入力シート!$L:$L, COLUMN(入力シート!BC$1)),\"\")","v":""}]
[10,{"$f":"IF($AA12<>0,INDEX(入力シート!$M:$M, COLUMN(入力シート!B$1)),\"\")","v":""},{"$f":"IF($AA12<>0,INDEX(入力シート!$M:$M, COLUMN(入力シート!C$1)),\"\")","v":""},{"$f":"IF($AA12<>0,INDEX(入力シート!$M:$M, COLUMN(入力シート!D$1)),\"\")","v":""},{"$f":"IF($AA12<>0,INDEX(入力シート!$M:$M, COLUMN(入力シート!E$1)),\"\")","v":""},{"$f":"IF($AA12<>0,INDEX(入力シート!$M:$M, COLUMN(入力シート!F$1)),\"\")","v":""},{"$f":"IF($AA12<>0,INDEX(入力シート!$M:$M, COLUMN(入力シート!G$1)),\"\")","v":""},{"$f":"IF($AA12<>0,INDEX(入力シート!$M:$M, COLUMN(入力シート!H$1)),\"\")","v":""},{"$f":"IF($AA12<>0,INDEX(入力シート!$M:$M, COLUMN(入力シート!I$1)),\"\")","v":""},{"$f":"IF($AA12<>0,INDEX(入力シート!$M:$M, COLUMN(入力シート!J$1)),\"\")","v":""},{"$f":"IF($AA12<>0,INDEX(入力シート!$M:$M, COLUMN(入力シート!K$1)),\"\")","v":""},{"$f":"IF($AA12<>0,INDEX(入力シート!$M:$M, COLUMN(入力シート!L$1)),\"\")","v":""},{"$f":"IF($AA12<>0,INDEX(入力シート!$M:$M, COLUMN(入力シート!M$1)),\"\")","v":""},{"$f":"IF($AA12<>0,INDEX(入力シート!$M:$M, COLUMN(入力シート!N$1)),\"\")","v":""},{"$f":"IF($AA12<>0,INDEX(入力シート!$M:$M, COLUMN(入力シート!O$1)),\"\")","v":""},{"$f":"IF($AA12<>0,INDEX(入力シート!$M:$M, COLUMN(入力シート!P$1)),\"\")","v":""},{"$f":"IF($AA12<>0,INDEX(入力シート!$M:$M, COLUMN(入力シート!Q$1)),\"\")","v":""},{"$f":"IF($AA12<>0,INDEX(入力シート!$M:$M, COLUMN(入力シート!R$1)),\"\")","v":""},{"$f":"IF($AA12<>0,INDEX(入力シート!$M:$M, COLUMN(入力シート!S$1)),\"\")","v":""},{"$f":"IF($AA12<>0,INDEX(入力シート!$M:$M, COLUMN(入力シート!T$1)),\"\")","v":""},{"$f":"IF($AA12<>0,INDEX(入力シート!$M:$M, COLUMN(入力シート!U$1)),\"\")","v":""},{"$f":"IF($AA12<>0,INDEX(入力シート!$M:$M, COLUMN(入力シート!V$1)),\"\")","v":""},{"$f":"IF($AA12<>0,INDEX(入力シート!$M:$M, COLUMN(入力シート!W$1)),\"\")","v":""},{"$f":"IF($AA12<>0,INDEX(入力シート!$M:$M, COLUMN(入力シート!X$1)),\"\")","v":""},{"$f":"IF($AA12<>0,INDEX(入力シート!$M:$M, COLUMN(入力シート!Y$1)),\"\")","v":""},{"$f":"IF($AA12<>0,INDEX(入力シート!$M:$M, COLUMN(入力シート!Z$1)),\"\")","v":""},{"$f":"INDEX(入力シート!$M:$M, COLUMN(入力シート!AA$1))","v":0},{"$f":"IF($AA12<>0,INDEX(入力シート!$M:$M, COLUMN(入力シート!AB$1)),\"\")","v":""},{"$f":"IF($AA12<>0,INDEX(入力シート!$M:$M, COLUMN(入力シート!AC$1)),\"\")","v":""},{"$f":"IF($AA12<>0,INDEX(入力シート!$M:$M, COLUMN(入力シート!AD$1)),\"\")","v":""},{"$f":"IF($AA12<>0,IFERROR(INDEX(入力シート!$M:$M, COLUMN(入力シート!AE$1))*1,0),\"\")","v":""},{"$f":"IF($AA12<>0,INDEX(入力シート!$M:$M, COLUMN(入力シート!AF$1)),\"\")","v":""},{"$f":"IF($AA12<>0,INDEX(入力シート!$M:$M, COLUMN(入力シート!AG$1)),\"\")","v":""},{"$f":"IF($AA12<>0,INDEX(入力シート!$M:$M, COLUMN(入力シート!AH$1)),\"\")","v":""},{"$f":"IF($AA12<>0,INDEX(入力シート!$M:$M, COLUMN(入力シート!AI$1)),\"\")","v":""},{"$f":"IF($AA12<>0,INDEX(入力シート!$M:$M, COLUMN(入力シート!AJ$1)),\"\")","v":""},{"$f":"IF($AA12<>0,INDEX(入力シート!$M:$M, COLUMN(入力シート!AK$1)),\"\")","v":""},{"$f":"IF($AA12<>0,INDEX(入力シート!$M:$M, COLUMN(入力シート!AL$1)),\"\")","v":""},{"$f":"IF($AA12<>0,INDEX(入力シート!$M:$M, COLUMN(入力シート!AM$1)),\"\")","v":""},{"$f":"IF($AA12<>0,INDEX(入力シート!$M:$M, COLUMN(入力シート!AN$1)),\"\")","v":""},{"$f":"IF($AA12<>0,INDEX(入力シート!$M:$M, COLUMN(入力シート!AO$1)),\"\")","v":""},{"$f":"IF($AA12<>0,INDEX(入力シート!$M:$M, COLUMN(入力シート!AP$1)),\"\")","v":""},{"$f":"IF($AA12<>0,INDEX(入力シート!$M:$M, COLUMN(入力シート!AQ$1)),\"\")","v":""},{"$f":"IF($AA12<>0,INDEX(入力シート!$M:$M, COLUMN(入力シート!AR$1)),\"\")","v":""},{"$f":"IF($AA12<>0,INDEX(入力シート!$M:$M, COLUMN(入力シート!AS$1)),\"\")","v":""},{"$f":"IF($AA12<>0,INDEX(入力シート!$M:$M, COLUMN(入力シート!AT$1)),\"\")","v":""},{"$f":"IF($AA12<>0,INDEX(入力シート!$M:$M, COLUMN(入力シート!AU$1)),\"\")","v":""},{"$f":"IF($AA12<>0,INDEX(入力シート!$M:$M, COLUMN(入力シート!AV$1)),\"\")","v":""},{"$f":"IF($AA12<>0,INDEX(入力シート!$M:$M, COLUMN(入力シート!AW$1)),\"\")","v":""},{"$f":"IF($AA12<>0,INDEX(入力シート!$M:$M, COLUMN(入力シート!AX$1)),\"\")","v":""},{"$f":"IF($AA12<>0,INDEX(入力シート!$M:$M, COLUMN(入力シート!AY$1)),\"\")","v":""},{"$f":"IF($AA12<>0,INDEX(入力シート!$M:$M, COLUMN(入力シート!AZ$1)),\"\")","v":""},{"$f":"IF($AA12<>0,INDEX(入力シート!$M:$M, COLUMN(入力シート!BA$1)),\"\")","v":""},{"$f":"IF($AA12<>0,INDEX(入力シート!$M:$M, COLUMN(入力シート!BB$1)),\"\")","v":""},{"$f":"IF($AA12<>0,INDEX(入力シート!$M:$M, COLUMN(入力シート!BC$1)),\"\")","v":""}]